Workbook

Sheet CONTRATACION MARZO
B1: CEDULA | C1: NOMBRES APELLIDOS CONTRATISTA | D1: # OPS | E1: # OPS CON AÑO | F1: OBJETO DEL CONTRATO | G1: FECHA INICIO | H1: FECHA TERMINACION | I1: VALOR MENSUAL | J1: VALOR TOTAL | K1: SUPERVISOR | L1: CARGO | M1: CDP | N1: RP | O1: FECHA SECOP
A2: 1 | B2: 7455342 | C2: ADOLFO MARIO DE LA HOZ BERNAL | D2: 0882 | E2: 0882-2020 | F2: MEDICO DE URGENCIA | G2: 02 de marzo de 2020 | H2: 31 de marzo de 2020 | I2: 2560000 | J2: =I2*1 -> 2560000 | K2: WILFRAN JIMENEZ DE LA PEÑA | L2: COORD CENTRO DE SALUD | M2: 1109 | N2: 1990 | O2: 2020-03-16 | P2: =VLOOKUP(B2:B431,'[1]CONTRATACION MARZO '!$B$2:$AB$431,27,0) -> https://www.contratos.gov.co/consultas/detalleProceso.do?numConstancia=20-4-10584788
A3: =+A2+1 -> 2 | B3: 55309225 | C3: ADRIANA BALLESTAS MARTINEZ | D3: 0883 | E3: 0883-2020 | F3: MEDICO DE URGENCIA | G3: 02 de marzo de 2020 | H3: 31 de marzo de 2020 | I3: 2560000 | J3: 2560000 | K3: SERGIO BOVEA MARIN | L3: COORD CENTRO DE SALUD | M3: 1110 | N3: 1991 | O3: 2020-03-16 | P3: =VLOOKUP(B3:B431,'[1]CONTRATACION MARZO '!$B$2:$AB$431,27,0) -> https://www.contratos.gov.co/consultas/detalleProceso.do?numConstancia=20-4-10584800
A4: 3 | B4: 1103109488 | C4: ADRIANA MARCELA CASTAÑO RODELO | D4: 0884 | E4: 0884-2020 | F4: MEDICO CARDIOVASCULAR | G4: 02 de marzo de 2020 | H4: 31 de marzo de 2020 | I4: 2300000 | J4: 2300000 | K4: DIANA MARTINEZ PACHECO | L4: COORD CENTRO DE SALUD | M4: 1111 | N4: 1992 | O4: 2020-03-16 | P4: =VLOOKUP(B4:B431,'[1]CONTRATACION MARZO '!$B$2:$AB$431,27,0) -> https://www.contratos.gov.co/consultas/detalleProceso.do?numConstancia=20-4-10584818
A5: 4 | B5: 22465848 | C5: ADRIANA OROZCO CANTILLO | D5: 0885 | E5: 0885-2020 | F5: AUXILIAR SERVICIOS GENERALES | G5: 02 de marzo de 2020 | H5: 31 de marzo de 2020 | I5: 1215000 | J5: 1215000 | K5: LUIS CARLOS DE LEON BERNIER | L5: COORD CENTRO DE SALUD | M5: 1112 | N5: 1993 | O5: 2020-03-16 | P5: =VLOOKUP(B5:B431,'[1]CONTRATACION MARZO '!$B$2:$AB$431,27,0) -> https://www.contratos.gov.co/consultas/detalleProceso.do?numConstancia=20-4-10584827
A6: 5 | B6: 1140895535 | C6: ADRIANA PAOLA GONZALEZ ROMERO | D6: 0886 | E6: 0886-2020 | F6: ENFERMERA JEFE | G6: 02 de marzo de 2020 | H6: 31 de marzo de 2020 | I6: 2120000 | J6: 2120000 | K6: AIX PALACIO | L6: COORD CENTRO DE SALUD | M6: 1113 | N6: 1994 | O6: 2020-03-16 | P6: =VLOOKUP(B6:B431,'[1]CONTRATACION MARZO '!$B$2:$AB$431,27,0) -> https://www.contratos.gov.co/consultas/detalleProceso.do?numConstancia=20-4-10584832
A7: 6 | B7: 36555688 | C7: ALBA SOLANO COCA | D7: 0887 | E7: 0887-2020 | F7: ODONTOLOGO | G7: 02 de marzo de 2020 | H7: 31 de marzo de 2020 | I7: 1900000 | J7: 1900000 | K7: CARLOS VISBAL JIMENEZ | L7: COORD CENTRO DE SALUD | M7: 1114 | N7: 1995 | O7: 2020-03-16 | P7: =VLOOKUP(B7:B431,'[1]CONTRATACION MARZO '!$B$2:$AB$431,27,0) -> https://www.contratos.gov.co/consultas/detalleProceso.do?numConstancia=20-4-10584838
A8: 7 | B8: 1140874429 | C8: ALBERTO DE LA OSSA DE AVILA | D8: 0888 | E8: 0888-2020 | F8: PROFESIONAL DE PRESUPUESTO | G8: 02 de marzo de 2020 | H8: 31 de marzo de 2020 | I8: 3000000 | J8: 3000000 | K8: ALFONSO NICOLAS OQUENDO | L8: DIRECTOR FINANCIERO | M8: 1115 | N8: 1996 | O8: 2020-03-16 | P8: =VLOOKUP(B8:B431,'[1]CONTRATACION MARZO '!$B$2:$AB$431,27,0) -> https://www.contratos.gov.co/consultas/detalleProceso.do?numConstancia=20-4-10584874
A9: 8 | B9: 8505956 | C9: ALBERTO NAVARRO MORALES | D9: 0889 | E9: 0889-2020 | F9: AUXILIAR DE FACTURACION URGENCIA | G9: 02 de marzo de 2020 | H9: 31 de marzo de 2020 | I9: 1400000 | J9: 1400000 | K9: SANDRA SANMARTIN | L9: SUBGERENCIA ADMINISTRATIVA | M9: 1116 | N9: 1997 | O9: 2020-03-16 | P9: =VLOOKUP(B9:B431,'[1]CONTRATACION MARZO '!$B$2:$AB$431,27,0) -> https://www.contratos.gov.co/consultas/detalleProceso.do?numConstancia=20-4-10584882
A10: 9 | B10: 37577926 | C10: ALCIRA CAMPO ALCOZER | D10: 0890 | E10: 0890-2020 | F10: AUXILIAR SERVICIOS GENERALES | G10: 02 de marzo de 2020 | H10: 31 de marzo de 2020 | I10: 1215000 | J10: 1215000 | K10: SANDRA SANMARTIN | L10: SUBGERENCIA ADMINISTRATIVA | M10: 1117 | N10: 1998 | O10: 2020-03-16 | P10: =VLOOKUP(B10:B431,'[1]CONTRATACION MARZO '!$B$2:$AB$431,27,0) -> https://www.contratos.gov.co/consultas/detalleProceso.do?numConstancia=20-4-10584914
A11: 10 | B11: 64543985 | C11: ALCIRA GOMEZ ARRIETA | D11: 0891 | E11: 0891-2020 | F11: ENFERMERA JEFE COORDINADORA PAI | G11: 02 de marzo de 2020 | H11: 31 de marzo de 2020 | I11: 4000000 | J11: 4000000 | K11: NILSA ARIZA MARQUEZ | L11: COORDINADOR PYP | M11: 1118 | N11: 1999 | O11: 2020-03-16 | P11: =VLOOKUP(B11:B431,'[1]CONTRATACION MARZO '!$B$2:$AB$431,27,0) -> https://www.contratos.gov.co/consultas/detalleProceso.do?numConstancia=20-4-10584922
A12: 11 | B12: 1042428171 | C12: ALEX ENRIQUE VILLARREAL IBAÑEZ | D12: 0892 | E12: 0892-2020 | F12: ODONTOLOGO | G12: 02 de marzo de 2020 | H12: 31 de marzo de 2020 | I12: 1900000 | J12: 1900000 | K12: SERGIO BOVEA MARIN | L12: COORD CENTRO DE SALUD | M12: 1119 | N12: 2000 | O12: 2020-03-16 | P12: =VLOOKUP(B12:B431,'[1]CONTRATACION MARZO '!$B$2:$AB$431,27,0) -> https://www.contratos.gov.co/consultas/detalleProceso.do?numConstancia=20-4-10584940
A13: 12 | B13: 8777621 | C13: ALEXANDER MIGUEL SALAZAR CABALLERO | D13: 0893 | E13: 0893-2020 | F13: AUXILIAR DE FACTURACION URGENCIA | G13: 02 de marzo de 2020 | H13: 31 de marzo de 2020 | I13: 1400000 | J13: 1400000 | K13: SANDRA SANMARTIN | L13: SUBGERENCIA ADMINISTRATIVA | M13: 1120 | N13: 2001 | O13: 2020-03-16 | P13: =VLOOKUP(B13:B431,'[1]CONTRATACION MARZO '!$B$2:$AB$431,27,0) -> https://www.contratos.gov.co/consultas/detalleProceso.do?numConstancia=20-4-10584951
A14: 13 | B14: 22523223 | C14: ALEXANDRA ESTHER MOLINA PEREZ | D14: 0894 | E14: 0894-2020 | F14: AUXILIAR SERVICIOS GENERALES URGENCIA | G14: 02 de marzo de 2020 | H14: 31 de marzo de 2020 | I14: 1378000 | J14: 1378000 | K14: SERGIO BOVEA MARIN | L14: COORD CENTRO DE SALUD | M14: 1121 | N14: 2002 | O14: 2020-03-16 | P14: =VLOOKUP(B14:B431,'[1]CONTRATACION MARZO '!$B$2:$AB$431,27,0) -> https://www.contratos.gov.co/consultas/detalleProceso.do?numConstancia=20-4-10584968
A15: 14 | B15: 1140881787 | C15: ALEXANDRA GUZMAN QUINTERO | D15: 0895 | E15: 0895-2020 | F15: ASISTENTE OFICINA JURIDICA | G15: 02 de marzo de 2020 | H15: 31 de marzo de 2020 | I15: 3000000 | J15: 3000000 | K15: ORNELLA FIORENTINO | L15: JEFE DE JURIDICA | M15: 1122 | N15: 2003 | O15: 2020-03-16 | P15: =VLOOKUP(B15:B431,'[1]CONTRATACION MARZO '!$B$2:$AB$431,27,0) -> https://www.contratos.gov.co/consultas/detalleProceso.do?numConstancia=20-4-10584979
A16: 15 | B16: 8714709 | C16: ALFONSO DOMINGUEZ MARENCO | D16: 0896 | E16: 0896-2020 | F16: AUXILIAR DE ARCHIVO | G16: 02 de marzo de 2020 | H16: 31 de marzo de 2020 | I16: 1500000 | J16: 1500000 | K16: SANDRA SANMARTIN | L16: SUBGERENCIA ADMINISTRATIVA | M16: 1123 | N16: 2004 | O16: 2020-03-16 | P16: =VLOOKUP(B16:B431,'[1]CONTRATACION MARZO '!$B$2:$AB$431,27,0) -> https://www.contratos.gov.co/consultas/detalleProceso.do?numConstancia=20-4-10585013
A17: 16 | B17: 72000601 | C17: ALEXIS JAVIER SUAREZ CABALLERO | D17: 0897 | E17: 0897-2020 | F17: AUXILIAR DE FACTURACION URGENCIA | G17: 02 de marzo de 2020 | H17: 31 de marzo de 2020 | I17: 1400000 | J17: 1400000 | K17: SANDRA SANMARTIN | L17: SUBGERENCIA ADMINISTRATIVA | M17: 1124 | N17: 2005 | O17: 2020-03-16 | P17: =VLOOKUP(B17:B431,'[1]CONTRATACION MARZO '!$B$2:$AB$431,27,0) -> https://www.contratos.gov.co/consultas/detalleProceso.do?numConstancia=20-4-10585038
A18: 17 | B18: 1045716759 | C18: ALFREDO ANGULO JULIAO | D18: 0898 | E18: 0898-2020 | F18: AUXILIAR DE FACTURACION URGENCIA | G18: 02 de marzo de 2020 | H18: 31 de marzo de 2020 | I18: 1400000 | J18: 1400000 | K18: SANDRA SANMARTIN | L18: SUBGERENCIA ADMINISTRATIVA | M18: 1125 | N18: 2006 | O18: 2020-03-16 | P18: =VLOOKUP(B18:B431,'[1]CONTRATACION MARZO '!$B$2:$AB$431,27,0) -> https://www.contratos.gov.co/consultas/detalleProceso.do?numConstancia=20-4-10585051
A19: 18 | B19: 15666678 | C19: ALFREDO ANTONIO RAMIREZ PEREIRA | D19: 0899 | E19: 0899-2020 | F19: COORDINADOR DE ARCHIVO | G19: 02 de marzo de 2020 | H19: 31 de marzo de 2020 | I19: 3000000 | J19: 3000000 | K19: SANDRA SANMARTIN | L19: SUBGERENCIA ADMINISTRATIVA | M19: 1126 | N19: 2007 | O19: 2020-03-16 | P19: =VLOOKUP(B19:B431,'[1]CONTRATACION MARZO '!$B$2:$AB$431,27,0) -> https://www.contratos.gov.co/consultas/detalleProceso.do?numConstancia=20-4-10585061
A20: 19 | B20: 8721508 | C20: ALONSO JOSÉ RIQUETT DE LA HOZ | D20: 0900 | E20: 0900-2020 | F20: MEDICO P Y P | G20: 02 de marzo de 2020 | H20: 31 de marzo de 2020 | I20: 2120000 | J20: 2120000 | K20: CARLOS VISBAL JIMENEZ | L20: COORD CENTRO DE SALUD | M20: 1127 | N20: 2008 | O20: 2020-03-16 | P20: =VLOOKUP(B20:B431,'[1]CONTRATACION MARZO '!$B$2:$AB$431,27,0) -> https://www.contratos.gov.co/consultas/detalleProceso.do?numConstancia=20-4-10585135
A21: 20 | B21: 1139614174 | C21: ALONSO MATEO LLANES ARIZA | D21: 0901 | E21: 0901-2020 | F21: MEDICO CONSULTA EXTERNA | G21: 02 de marzo de 2020 | H21: 31 de marzo de 2020 | I21: 2120000 | J21: 2120000 | K21: AIX PALACIO | L21: COORD CENTRO DE SALUD | M21: 1128 | N21: 2009 | O21: 2020-03-16 | P21: =VLOOKUP(B21:B431,'[1]CONTRATACION MARZO '!$B$2:$AB$431,27,0) -> https://www.contratos.gov.co/consultas/detalleProceso.do?numConstancia=20-4-10585208
A22: 21 | B22: 8697543 | C22: ALVARO ARENAS GONZALEZ | D22: 0902 | E22: 0902-2020 | F22: MEDICO DE MATERNIDAD | G22: 02 de marzo de 2020 | H22: 31 de marzo de 2020 | I22: 4240000 | J22: 4240000 | K22: SERGIO BOVEA MARIN | L22: COORD CENTRO DE SALUD | M22: 1129 | N22: 2010 | O22: 2020-03-16 | P22: =VLOOKUP(B22:B431,'[1]CONTRATACION MARZO '!$B$2:$AB$431,27,0) -> https://www.contratos.gov.co/consultas/detalleProceso.do?numConstancia=20-4-10585234
A23: 22 | B23: 7407679 | C23: AMEFI PACHECO CERA | D23: 0903 | E23: 0903-2020 | F23: ORIENTADOR | G23: 02 de marzo de 2020 | H23: 31 de marzo de 2020 | I23: 1270000 | J23: 1270000 | K23: AIX PALACIO | L23: COORD CENTRO DE SALUD | M23: 1130 | N23: 2011 | O23: 2020-03-16 | P23: =VLOOKUP(B23:B431,'[1]CONTRATACION MARZO '!$B$2:$AB$431,27,0) -> https://www.contratos.gov.co/consultas/detalleProceso.do?numConstancia=20-4-10585289
A24: 23 | B24: 1047338042 | C24: AMINTA PARDO GUZMAN | D24: 0904 | E24: 0904-2020 | F24: AUXILIAR DE ENFERMERIA CONSULTA EXTERNA | G24: 02 de marzo de 2020 | H24: 31 de marzo de 2020 | I24: 1749000 | J24: 1749000 | K24: DIANA MARTINEZ PACHECO | L24: COORD CENTRO DE SALUD | M24: 1131 | N24: 2012 | O24: 2020-03-16 | P24: =VLOOKUP(B24:B431,'[1]CONTRATACION MARZO '!$B$2:$AB$431,27,0) -> https://www.contratos.gov.co/consultas/detalleProceso.do?numConstancia=20-4-10585326
A25: 24 | B25: 1045688469 | C25: AMY MOVILLA COMAS | D25: 0905 | E25: 0905-2020 | F25: ENFERMERA JEFE CONSULTA EXTERNA | G25: 02 de marzo de 2020 | H25: 31 de marzo de 2020 | I25: 2300000 | J25: 2300000 | K25: DIANA MARTINEZ PACHECO | L25: COORD CENTRO DE SALUD | M25: 1132 | N25: 2013 | O25: 2020-03-16 | P25: =VLOOKUP(B25:B431,'[1]CONTRATACION MARZO '!$B$2:$AB$431,27,0) -> https://www.contratos.gov.co/consultas/detalleProceso.do?numConstancia=20-4-10585343
A26: 25 | B26: 32813366 | C26: ANA GONZALEZ ZAMBRANO | D26: 0906 | E26: 0906-2020 | F26: AUXILIAR DE ARCHIVO | G26: 02 de marzo de 2020 | H26: 31 de marzo de 2020 | I26: 1500000 | J26: 1500000 | K26: SANDRA SANMARTIN | L26: SUBGERENCIA ADMINISTRATIVA | M26: 1133 | N26: 2014 | O26: 2020-03-16 | P26: =VLOOKUP(B26:B431,'[1]CONTRATACION MARZO '!$B$2:$AB$431,27,0) -> https://www.contratos.gov.co/consultas/detalleProceso.do?numConstancia=20-4-10585391
A27: 26 | B27: 1045704276 | C27: ANA MILENA HERRERA ALVIS | D27: 0907 | E27: 0907-2020 | F27: ENFERMERA JEFE | G27: 02 de marzo de 2020 | H27: 31 de marzo de 2020 | I27: 2300000 | J27: 2300000 | K27: NILSA ARIZA MARQUEZ | L27: COORDINADOR PYP | M27: 1134 | N27: 2015 | O27: 2020-03-16 | P27: =VLOOKUP(B27:B431,'[1]CONTRATACION MARZO '!$B$2:$AB$431,27,0) -> https://www.contratos.gov.co/consultas/detalleProceso.do?numConstancia=20-4-10585429
A28: 27 | B28: 22739459 | C28: ANA MILENA L´HOESTE ROA | D28: 0908 | E28: 0908-2020 | F28: COORDINADORA CONSULTA EXTERNA | G28: 02 de marzo de 2020 | H28: 31 de marzo de 2020 | I28: 3700000 | J28: 3700000 | K28: BETTY PERTUZ | L28: SUBGERENCIA CIENTIFICA | M28: 1135 | N28: 2016 | O28: 2020-03-16 | P28: =VLOOKUP(B28:B431,'[1]CONTRATACION MARZO '!$B$2:$AB$431,27,0) -> https://www.contratos.gov.co/consultas/detalleProceso.do?numConstancia=20-4-10585444
A29: 28 | B29: 32825462 | C29: ANAIS DE JESUS RODRIGUEZ DE LAS AGUAS | D29: 0909 | E29: 0909-2020 | F29: AUXILIAR SERVICIOS GENERALES | G29: 02 de marzo de 2020 | H29: 31 de marzo de 2020 | I29: 1215000 | J29: 1215000 | K29: SANDRA SANMARTIN | L29: ADMON COSTA HERMOSA | M29: 1136 | N29: 2017 | O29: 2020-03-16 | P29: =VLOOKUP(B29:B431,'[1]CONTRATACION MARZO '!$B$2:$AB$431,27,0) -> https://www.contratos.gov.co/consultas/detalleProceso.do?numConstancia=20-4-10585472
A30: 29 | B30: 1045706259 | C30: ANDREA CAROLINA HERRERA ORTEGA | D30: 0910 | E30: 0910-2020 | F30: MEDICO CONSULTA EXTERNA | G30: 02 de marzo de 2020 | H30: 31 de marzo de 2020 | I30: 2120000 | J30: 2120000 | K30: LUIS GRANADOS GOMEZ | L30: COORD CENTRO DE SALUD | M30: 1137 | N30: 2018 | O30: 2020-03-16 | P30: =VLOOKUP(B30:B431,'[1]CONTRATACION MARZO '!$B$2:$AB$431,27,0) -> https://www.contratos.gov.co/consultas/detalleProceso.do?numConstancia=20-4-10585512
A31: 30 | B31: 1001821798 | C31: ANGELA JUDITH BARRIOS MEJIA | D31: 0911 | E31: 0911-2020 | F31: AUXILIAR DE ENFERMERIA URGENCIAS | G31: 02 de marzo de 2020 | H31: 31 de marzo de 2020 | I31: 1378000 | J31: 1378000 | K31: WILFRAN JIMENEZ DE LA PEÑA | L31: COORD CENTRO DE SALUD | M31: 1138 | N31: 2019 | O31: 2020-03-16 | P31: =VLOOKUP(B31:B431,'[1]CONTRATACION MARZO '!$B$2:$AB$431,27,0) -> https://www.contratos.gov.co/consultas/detalleProceso.do?numConstancia=20-4-10585543
A32: 31 | B32: 22641629 | C32: ANGELICA CARCAMO ANAYA | D32: 0912 | E32: 0912-2020 | F32: AGENTE CALL CENTER | G32: 02 de marzo de 2020 | H32: 31 de marzo de 2020 | I32: 1378000 | J32: 1378000 | K32: WILFRAN JIMENEZ DE LA PEÑA | L32: COORD CENTRO DE SALUD | M32: 1139 | N32: 2020 | O32: 2020-03-16 | P32: =VLOOKUP(B32:B431,'[1]CONTRATACION MARZO '!$B$2:$AB$431,27,0) -> https://www.contratos.gov.co/consultas/detalleProceso.do?numConstancia=20-4-10585555
A33: 32 | B33: 22736159 | C33: ARACELLY HERNANDEZ GARCIA | D33: 0913 | E33: 0913-2020 | F33: DIGITADOR PAI WEB | G33: 02 de marzo de 2020 | H33: 31 de marzo de 2020 | I33: 2500000 | J33: 2500000 | K33: NILSA ARIZA MARQUEZ | L33: COORDINADOR PYP | M33: 1140 | N33: 2021 | O33: 2020-03-16 | P33: =VLOOKUP(B33:B431,'[1]CONTRATACION MARZO '!$B$2:$AB$431,27,0) -> https://www.contratos.gov.co/consultas/detalleProceso.do?numConstancia=20-4-10585600
A34: 33 | B34: 32869290 | C34: ARGENEDITH YEPEZ ESCALANTE | D34: 0914 | E34: 0914-2020 | F34: MEDICO P Y P | G34: 02 de marzo de 2020 | H34: 31 de marzo de 2020 | I34: 2120000 | J34: 2120000 | K34: LUIS GRANADOS GOMEZ | L34: COORD CENTRO DE SALUD | M34: 1141 | N34: 2022 | O34: 2020-03-16 | P34: =VLOOKUP(B34:B431,'[1]CONTRATACION MARZO '!$B$2:$AB$431,27,0) -> https://www.contratos.gov.co/consultas/detalleProceso.do?numConstancia=20-4-10585624
A35: =+A34+1 -> 34 | B35: 1140850083 | C35: ARLINY YANNINY RAMIREZ FIGUEROA | D35: 0915 | E35: 0915-2020 | F35: ASESOR DE PRESUPUESTO | G35: 02 de marzo de 2020 | H35: 31 de marzo de 2020 | I35: 4000000 | J35: 4000000 | K35: ALFONSO NICOLAS OQUENDO | L35: DIRECTOR FINANCIERO | M35: 1142 | N35: 2023 | O35: 2020-03-16 | P35: =VLOOKUP(B35:B431,'[1]CONTRATACION MARZO '!$B$2:$AB$431,27,0) -> https://www.contratos.gov.co/consultas/detalleProceso.do?numConstancia=20-4-10585641
A36: 35 | B36: 1042444527 | C36: ARNOLD RINCON MARTINEZ | D36: 0916 | E36: 0916-2020 | F36: PROFESIONAL PLANEACION ESTRATEGICA | G36: 02 de marzo de 2020 | H36: 31 de marzo de 2020 | I36: 4000000 | J36: 4000000 | K36: SANDRA SANMARTIN | L36: SUBGERENCIA ADMINISTRATIVA | M36: 1143 | N36: 2024 | O36: 2020-03-16 | P36: =VLOOKUP(B36:B431,'[1]CONTRATACION MARZO '!$B$2:$AB$431,27,0) -> https://www.contratos.gov.co/consultas/detalleProceso.do?numConstancia=20-4-10585665
A37: 36 | B37: 32767778 | C37: BEATRIZ ELENA GUTIERREZ AHUMADA | D37: 0917 | E37: 0917-2020 | F37: DIGITADOR PAI WEB | G37: 02 de marzo de 2020 | H37: 31 de marzo de 2020 | I37: 1378000 | J37: 1378000 | K37: NILSA ARIZA MARQUEZ | L37: COORDINADOR PYP | M37: 1144 | N37: 2025 | O37: 2020-03-16 | P37: =VLOOKUP(B37:B431,'[1]CONTRATACION MARZO '!$B$2:$AB$431,27,0) -> https://www.contratos.gov.co/consultas/detalleProceso.do?numConstancia=20-4-10585682
A38: 37 | B38: 45496113 | C38: BEATRIZ HELENA JIMENO CARDENAS | D38: 0918 | E38: 0918-2020 | F38: AUXILIAR DE ARCHIVO | G38: 02 de marzo de 2020 | H38: 31 de marzo de 2020 | I38: 1500000 | J38: 1500000 | K38: SANDRA SANMARTIN | L38: SUBGERENCIA ADMINISTRATIVA | M38: 1145 | N38: 2026 | O38: 2020-03-16 | P38: =VLOOKUP(B38:B431,'[1]CONTRATACION MARZO '!$B$2:$AB$431,27,0) -> https://www.contratos.gov.co/consultas/detalleProceso.do?numConstancia=20-4-10585705
A39: 38 | B39: 32780077 | C39: BELKIS BOSSIO ESCORCIA | D39: 0919 | E39: 0919-2020 | F39: MEDICO DE URGENCIA | G39: 02 de marzo de 2020 | H39: 31 de marzo de 2020 | I39: 2560000 | J39: 2560000 | K39: WILFRAN JIMENEZ DE LA PEÑA | L39: COORD CENTRO DE SALUD | M39: 1146 | N39: 2027 | O39: 2020-03-16 | P39: =VLOOKUP(B39:B431,'[1]CONTRATACION MARZO '!$B$2:$AB$431,27,0) -> https://www.contratos.gov.co/consultas/detalleProceso.do?numConstancia=20-4-10585721
A40: 39 | B40: 32736237 | C40: BETTY ROMERO RODRIGUEZ | D40: 0920 | E40: 0920-2020 | F40: AUXILIAR SERVICIOS GENERALES URGENCIA | G40: 02 de marzo de 2020 | H40: 31 de marzo de 2020 | I40: 1378000 | J40: 1378000 | K40: WILFRAN JIMENEZ DE LA PEÑA | L40: COORD CENTRO DE SALUD | M40: 1147 | N40: 2028 | O40: 2020-03-16 | P40: =VLOOKUP(B40:B431,'[1]CONTRATACION MARZO '!$B$2:$AB$431,27,0) -> https://www.contratos.gov.co/consultas/detalleProceso.do?numConstancia=20-4-10585742
A41: 40 | B41: 72153271 | C41: BORIS ARROYO ESCOBAR | D41: 0921 | E41: 0921-2020 | F41: ORIENTADOR | G41: 02 de marzo de 2020 | H41: 31 de marzo de 2020 | I41: 1270000 | J41: 1270000 | K41: LUIS GRANADOS GOMEZ | L41: COORD CENTRO DE SALUD | M41: 1148 | N41: 2029 | O41: 2020-03-16 | P41: =VLOOKUP(B41:B431,'[1]CONTRATACION MARZO '!$B$2:$AB$431,27,0) -> https://www.contratos.gov.co/consultas/detalleProceso.do?numConstancia=20-4-10585821
A42: 41 | B42: 7938572 | C42: BRAYNERD ALVAREZ JIMENEZ | D42: 0922 | E42: 0922-2020 | F42: MEDICO CONSULTA EXTERNA Y CARDIOVASCULAR | G42: 02 de marzo de 2020 | H42: 31 de marzo de 2020 | I42: 4600000 | J42: 4600000 | K42: YARELIS GUERRA CORREA | L42: COORD CENTRO DE SALUD | M42: 1149 | N42: 2030 | O42: 2020-03-16 | P42: =VLOOKUP(B42:B431,'[1]CONTRATACION MARZO '!$B$2:$AB$431,27,0) -> https://www.contratos.gov.co/consultas/detalleProceso.do?numConstancia=20-4-10585844
A43: 42 | B43: 1001875457 | C43: BRIGGITH CHARRIS ALGARIN | D43: 0923 | E43: 0923-2020 | F43: AUXILIAR DE ODONTOLOGIA | G43: 02 de marzo de 2020 | H43: 31 de marzo de 2020 | I43: 1166000 | J43: 1166000 | K43: WILFRAN JIMENEZ DE LA PEÑA | L43: COORD CENTRO DE SALUD | M43: 1150 | N43: 2031 | O43: 2020-03-16 | P43: =VLOOKUP(B43:B431,'[1]CONTRATACION MARZO '!$B$2:$AB$431,27,0) -> https://www.contratos.gov.co/consultas/detalleProceso.do?numConstancia=20-4-10585944
A44: 43 | B44: 1042446319 | C44: BRUNYS DEL CARMEN RAMIREZ MUÑOZ | D44: 0924 | E44: 0924-2020 | F44: AUXILIAR DE ENFERMERIA PROMOTORA EN SALUD | G44: 02 de marzo de 2020 | H44: 31 de marzo de 2020 | I44: 1215000 | J44: 1215000 | K44: WILFRAN JIMENEZ DE LA PEÑA | L44: COORD CENTRO DE SALUD | M44: 1151 | N44: 2032 | O44: 2020-03-16 | P44: =VLOOKUP(B44:B431,'[1]CONTRATACION MARZO '!$B$2:$AB$431,27,0) -> https://www.contratos.gov.co/consultas/detalleProceso.do?numConstancia=20-4-10585962
A45: 44 | B45: 5055447 | C45: CARLOS ALBERTO CARBONELL ALVAREZ | D45: 0925 | E45: 0925-2020 | F45: AUDITOR MEDICO | G45: 02 de marzo de 2020 | H45: 31 de marzo de 2020 | I45: =4500000 -> 4500000 | J45: 4500000 | K45: BETTY PERTUZ | L45: SUBGERENCIA CIENTIFICA | M45: 1152 | N45: 2033 | O45: 2020-03-16 | P45: =VLOOKUP(B45:B431,'[1]CONTRATACION MARZO '!$B$2:$AB$431,27,0) -> https://www.contratos.gov.co/consultas/detalleProceso.do?numConstancia=20-4-10585995
A46: 45 | B46: 33109830 | C46: CARMEN ELISA LEONES CASTRO | D46: 0926 | E46: 0926-2020 | F46: AUXILIAR DE ARCHIVO | G46: 02 de marzo de 2020 | H46: 31 de marzo de 2020 | I46: 1500000 | J46: 1500000 | K46: SANDRA SANMARTIN | L46: SUBGERENCIA ADMINISTRATIVA | M46: 1153 | N46: 2034 | O46: 2020-03-16 | P46: =VLOOKUP(B46:B431,'[1]CONTRATACION MARZO '!$B$2:$AB$431,27,0) -> https://www.contratos.gov.co/consultas/detalleProceso.do?numConstancia=20-4-10586009
A47: 46 | B47: 44158949 | C47: CARMEN PACHECO VARELA | D47: 0927 | E47: 0927-2020 | F47: AUXILIAR SERVICIOS GENERALES URGENCIA | G47: 02 de marzo de 2020 | H47: 31 de marzo de 2020 | I47: 1378000 | J47: 1378000 | K47: SERGIO BOVEA MARIN | L47: COORD CENTRO DE SALUD | M47: 1154 | N47: 2035 | O47: 2020-03-16 | P47: =VLOOKUP(B47:B431,'[1]CONTRATACION MARZO '!$B$2:$AB$431,27,0) -> https://www.contratos.gov.co/consultas/detalleProceso.do?numConstancia=20-4-10586088
A48: 47 | B48: 32618430 | C48: CARMEN ROBLES DE LASCARRO | D48: 0928 | E48: 0928-2020 | F48: AUXILIAR SERVICIOS GENERALES URGENCIA | G48: 02 de marzo de 2020 | H48: 31 de marzo de 2020 | I48: 1378000 | J48: 1378000 | K48: WILFRAN JIMENEZ DE LA PEÑA | L48: COORD CENTRO DE SALUD | M48: 1155 | N48: 2036 | O48: 2020-03-16 | P48: =VLOOKUP(B48:B431,'[1]CONTRATACION MARZO '!$B$2:$AB$431,27,0) -> https://www.contratos.gov.co/consultas/detalleProceso.do?numConstancia=20-4-10586105
A49: 48 | B49: 32712485 | C49: CASILDA LARA SOLANO | D49: 0929 | E49: 0929-2020 | F49: MEDICO MATERNIDAD SEGURA | G49: 02 de marzo de 2020 | H49: 31 de marzo de 2020 | I49: 2120000 | J49: 2120000 | K49: SERGIO BOVEA MARIN | L49: COORD CENTRO DE SALUD | M49: 1156 | N49: 2037 | O49: 2020-03-16 | P49: =VLOOKUP(B49:B431,'[1]CONTRATACION MARZO '!$B$2:$AB$431,27,0) -> https://www.contratos.gov.co/consultas/detalleProceso.do?numConstancia=20-4-10587090
A50: 49 | B50: 1143138226 | C50: CATTERINNE ESTEFANY ESTRADA CARDENAS | D50: 0930 | E50: 0930-2020 | F50: AUXILIAR DE FACTURACION URGENCIA | G50: 02 de marzo de 2020 | H50: 31 de marzo de 2020 | I50: 1400000 | J50: 1400000 | K50: SANDRA SANMARTIN | L50: SUBGERENCIA ADMINISTRATIVA | M50: 1157 | N50: 2038 | O50: 2020-03-16 | P50: =VLOOKUP(B50:B431,'[1]CONTRATACION MARZO '!$B$2:$AB$431,27,0) -> https://www.contratos.gov.co/consultas/detalleProceso.do?numConstancia=20-4-10587110
A51: 50 | B51: 8762035 | C51: CESAR AUGUSTO MERIÑO ESCORCIA | D51: 0931 | E51: 0931-2020 | F51: ORIENTADOR | G51: 02 de marzo de 2020 | H51: 31 de marzo de 2020 | I51: 1270000 | J51: 1270000 | K51: SANDRA SANMARTIN | L51: SUBGERENCIA ADMINISTRATIVA | M51: 1158 | N51: 2039 | O51: 2020-03-16 | P51: =VLOOKUP(B51:B431,'[1]CONTRATACION MARZO '!$B$2:$AB$431,27,0) -> https://www.contratos.gov.co/consultas/detalleProceso.do?numConstancia=20-4-10587121
A52: 51 | B52: 1001798325 | C52: CINDY MILENA SARMIENTO MERIÑO | D52: 0932 | E52: 0932-2020 | F52: PROFESIONA RELACIONES INETRNACIONALES | G52: 02 de marzo de 2020 | H52: 31 de marzo de 2020 | I52: 4000000 | J52: 4000000 | K52: FABIAN COLPAS | L52: JEFE TALENTO HUMANO | M52: 1159 | N52: 2040 | O52: 2020-03-16 | P52: =VLOOKUP(B52:B431,'[1]CONTRATACION MARZO '!$B$2:$AB$431,27,0) -> https://www.contratos.gov.co/consultas/detalleProceso.do?numConstancia=20-4-10587223
A53: 52 | B53: 1001875491 | C53: CINDY MILENA VARELA ARIAS | D53: 0933 | E53: 0933-2020 | F53: AUXILIAR SERVICIOS GENERALES | G53: 02 de marzo de 2020 | H53: 31 de marzo de 2020 | I53: 1215000 | J53: 1215000 | K53: LUIS GRANADOS GOMEZ | L53: COORD CENTRO DE SALUD | M53: 1160 | N53: 2041 | O53: 2020-03-16 | P53: =VLOOKUP(B53:B431,'[1]CONTRATACION MARZO '!$B$2:$AB$431,27,0) -> https://www.contratos.gov.co/consultas/detalleProceso.do?numConstancia=20-4-10587295
A54: 53 | B54: 32769708 | C54: CLAUDIA ARENAS ALVAREZ | D54: 0934 | E54: 0934-2020 | F54: APOYO GESTION CONTROL INTERNO | G54: 02 de marzo de 2020 | H54: 31 de marzo de 2020 | I54: 3500000 | J54: 3500000 | K54: SANDRA SANMARTIN | L54: SUBGERENCIA ADMINISTRATIVA | M54: 1161 | N54: 2042 | O54: 2020-03-16 | P54: =VLOOKUP(B54:B431,'[1]CONTRATACION MARZO '!$B$2:$AB$431,27,0) -> https://www.contratos.gov.co/consultas/detalleProceso.do?numConstancia=20-4-10587310
A55: 54 | B55: 1042418998 | C55: CLAUDIA AREVALO CERVANTES | D55: 0935 | E55: 0935-2020 | F55: ENFERMERA JEFE P Y P | G55: 02 de marzo de 2020 | H55: 31 de marzo de 2020 | I55: 2300000 | J55: 2300000 | K55: NILSA ARIZA MARQUEZ | L55: COORDINADOR PYP | M55: 1162 | N55: 2043 | O55: 2020-03-16 | P55: =VLOOKUP(B55:B431,'[1]CONTRATACION MARZO '!$B$2:$AB$431,27,0) -> https://www.contratos.gov.co/consultas/detalleProceso.do?numConstancia=20-4-10587324
A56: 55 | B56: 32866058 | C56: CLAUDIA CABARCAS ARROYO | D56: 0936 | E56: 0936-2020 | F56: TRABAJADORA SOCIAL | G56: 02 de marzo de 2020 | H56: 31 de marzo de 2020 | I56: 2200000 | J56: 2200000 | K56: DIANA MARTINEZ PACHECO | L56: COORD CENTRO DE SALUD | M56: 1163 | N56: 2044 | O56: 2020-03-16 | P56: =VLOOKUP(B56:B431,'[1]CONTRATACION MARZO '!$B$2:$AB$431,27,0) -> https://www.contratos.gov.co/consultas/detalleProceso.do?numConstancia=20-4-10587357
A57: 56 | B57: 32749353 | C57: CLAUDIA VALENCIA AGUDELO | D57: 0937 | E57: 0937-2020 | F57: AUXILIAR DE ENFERMERIA MATERNIDAD SEGURA | G57: 02 de marzo de 2020 | H57: 31 de marzo de 2020 | I57: 1166000 | J57: 1166000 | K57: WILFRAN JIMENEZ DE LA PEÑA | L57: COORD CENTRO DE SALUD | M57: 1164 | N57: 2045 | O57: 2020-03-16 | P57: =VLOOKUP(B57:B431,'[1]CONTRATACION MARZO '!$B$2:$AB$431,27,0) -> https://www.contratos.gov.co/consultas/detalleProceso.do?numConstancia=20-4-10587394
A58: 57 | B58: 32818534 | C58: CONSUELO MENDOZA CASTRO | D58: 0938 | E58: 0938-2020 | F58: AUXILIAR DE ENFERMERIA MATERNIDAD SEGURA | G58: 02 de marzo de 2020 | H58: 31 de marzo de 2020 | I58: 1826773 | J58: 1826773 | K58: WILFRAN JIMENEZ DE LA PEÑA | L58: COORD CENTRO DE SALUD | M58: 1165 | N58: 2046 | O58: 2020-03-16 | P58: =VLOOKUP(B58:B431,'[1]CONTRATACION MARZO '!$B$2:$AB$431,27,0) -> https://www.contratos.gov.co/consultas/detalleProceso.do?numConstancia=20-4-10587421
A59: 58 | B59: 72193875 | C59: CRISTIAN DE JESUS BARRAZA VILLALBA | D59: 0939 | E59: 0939-2020 | F59: CONDUCTOR DE AMBULANCIA | G59: 02 de marzo de 2020 | H59: 31 de marzo de 2020 | I59: 1800000 | J59: 1800000 | K59: BETTY PERTUZ | L59: SUBGERENCIA CIENTIFICA | M59: 1166 | N59: 2047 | O59: 2020-03-16 | P59: =VLOOKUP(B59:B431,'[1]CONTRATACION MARZO '!$B$2:$AB$431,27,0) -> https://www.contratos.gov.co/consultas/detalleProceso.do?numConstancia=20-4-10587468
A60: 59 | B60: 1043611198 | C60: CRISTIAN JESUS RODRIGUEZ QUIROZ | D60: 0940 | E60: 0940-2020 | F60: AUXILIAR PRESUPUESTO | G60: 02 de marzo de 2020 | H60: 31 de marzo de 2020 | I60: 1900000 | J60: 1900000 | K60: ALFONSO NICOLAS OQUENDO | L60: DIRECTOR FINANCIERO | M60: 1167 | N60: 2048 | O60: 2020-03-16 | P60: =VLOOKUP(B60:B431,'[1]CONTRATACION MARZO '!$B$2:$AB$431,27,0) -> https://www.contratos.gov.co/consultas/detalleProceso.do?numConstancia=20-4-10587502
A61: 60 | B61: 72436677 | C61: DANILO ENRIQUE GRAVINI DE LA HOZ | D61: 0941 | E61: 0941-2020 | F61: AUXILIAR DE ENFERMERIA URGENCIAS | G61: 02 de marzo de 2020 | H61: 31 de marzo de 2020 | I61: 1378000 | J61: 1378000 | K61: WILFRAN JIMENEZ DE LA PEÑA | L61: COORD CENTRO DE SALUD | M61: 1168 | N61: 2049 | O61: 2020-03-16 | P61: =VLOOKUP(B61:B431,'[1]CONTRATACION MARZO '!$B$2:$AB$431,27,0) -> https://www.contratos.gov.co/consultas/detalleProceso.do?numConstancia=20-4-10587540
A62: 61 | B62: 1042442558 | C62: DANISA PAOLA BARRIOS DE ALBA | D62: 0942 | E62: 0942-2020 | F62: NUTRICIONISTA | G62: 02 de marzo de 2020 | H62: 31 de marzo de 2020 | I62: 2300000 | J62: 2300000 | K62: SERGIO BOVEA MARIN | L62: COORD CENTRO DE SALUD | M62: 1169 | N62: 2050 | O62: 2020-03-16 | P62: =VLOOKUP(B62:B431,'[1]CONTRATACION MARZO '!$B$2:$AB$431,27,0) -> https://www.contratos.gov.co/consultas/detalleProceso.do?numConstancia=20-4-10587554
A63: 62 | B63: 1045234352 | C63: DARIANA MARCELA ROMERO CASTELLANOS | D63: 0943 | E63: 0943-2020 | F63: MEDICO MATERNIDAD SEGURA | G63: 02 de marzo de 2020 | H63: 31 de marzo de 2020 | I63: 2120000 | J63: 2120000 | K63: WILFRAN JIMENEZ DE LA PEÑA | L63: COORD CENTRO DE SALUD | M63: 1170 | N63: 2051 | O63: 2020-03-16 | P63: =VLOOKUP(B63:B431,'[1]CONTRATACION MARZO '!$B$2:$AB$431,27,0) -> https://www.contratos.gov.co/consultas/detalleProceso.do?numConstancia=20-4-10587611
A64: 63 | B64: 1000149163 | C64: DAVID RICARDO BOTERO ALONSO | D64: 0944 | E64: 0944-2020 | F64: APOYO GESTION DOCUMENTAL JURIDICA | G64: 02 de marzo de 2020 | H64: 31 de marzo de 2020 | I64: 4000000 | J64: 4000000 | K64: ORNELLA FIORENTINO | L64: JEFE DE JURIDICA | M64: 1171 | N64: 2052 | O64: 2020-03-16 | P64: =VLOOKUP(B64:B431,'[1]CONTRATACION MARZO '!$B$2:$AB$431,27,0) -> https://www.contratos.gov.co/consultas/detalleProceso.do?numConstancia=20-4-10587622
A65: 64 | B65: 44157462 | C65: DAYAN MARTINEZ PACHECO | D65: 0945 | E65: 0945-2020 | F65: ABOGADO EXTERNO | G65: 02 de marzo de 2020 | H65: 31 de marzo de 2020 | I65: 5000000 | J65: 5000000 | K65: ORNELLA FIORENTINO | L65: JEFE DE JURIDICA | M65: 1172 | N65: 2053 | O65: 2020-03-16 | P65: =VLOOKUP(B65:B431,'[1]CONTRATACION MARZO '!$B$2:$AB$431,27,0) -> https://www.contratos.gov.co/consultas/detalleProceso.do?numConstancia=20-4-10587672
A66: 65 | B66: 1143439595 | C66: DAYANA PAOLA OTALORA AMAYA | D66: 0946 | E66: 0946-2020 | F66: DIGITADOR PAI WEB | G66: 02 de marzo de 2020 | H66: 31 de marzo de 2020 | I66: 1400000 | J66: =I66*1 -> 1400000 | K66: NILSA ARIZA MARQUEZ | L66: COORDINADOR PYP | M66: 1173 | N66: 2054 | O66: 2020-03-16 | P66: =VLOOKUP(B66:B431,'[1]CONTRATACION MARZO '!$B$2:$AB$431,27,0) -> https://www.contratos.gov.co/consultas/detalleProceso.do?numConstancia=20-4-10587684
A67: =+A66+1 -> 66 | B67: 1042436934 | C67: DAYANA PAOLA TORRES SOLANO | D67: 0947 | E67: 0947-2020 | F67: MEDICO DE URGENCIA | G67: 02 de marzo de 2020 | H67: 31 de marzo de 2020 | I67: 2560000 | J67: 2560000 | K67: WILFRAN JIMENEZ DE LA PEÑA | L67: COORD CENTRO DE SALUD | M67: 1174 | N67: 2055 | O67: 2020-03-16 | P67: =VLOOKUP(B67:B431,'[1]CONTRATACION MARZO '!$B$2:$AB$431,27,0) -> https://www.contratos.gov.co/consultas/detalleProceso.do?numConstancia=20-4-10587696
A68: 67 | B68: 1042436213 | C68: DESIRET PAOLA PINTO NARVAEZ | D68: 0948 | E68: 0948-2020 | F68: ENFERMERA JEFE URGENCIAS | G68: 02 de marzo de 2020 | H68: 31 de marzo de 2020 | I68: 1900000 | J68: 1900000 | K68: WILFRAN JIMENEZ DE LA PEÑA | L68: COORD CENTRO DE SALUD | M68: 1175 | N68: 2056 | O68: 2020-03-16 | P68: =VLOOKUP(B68:B431,'[1]CONTRATACION MARZO '!$B$2:$AB$431,27,0) -> https://www.contratos.gov.co/consultas/detalleProceso.do?numConstancia=20-4-10587709
A69: 68 | B69: 1082405551 | C69: DESIRETH ESTRADA FERNANDEZ | D69: 0949 | E69: 0949-2020 | F69: ENFERMERA JEFE P Y P | G69: 02 de marzo de 2020 | H69: 31 de marzo de 2020 | I69: 2300000 | J69: 2300000 | K69: NILSA ARIZA MARQUEZ | L69: COORDINADOR PYP | M69: 1176 | N69: 2057 | O69: 2020-03-16 | P69: =VLOOKUP(B69:B431,'[1]CONTRATACION MARZO '!$B$2:$AB$431,27,0) -> https://www.contratos.gov.co/consultas/detalleProceso.do?numConstancia=20-4-10587720
A70: 69 | B70: 22585192 | C70: DIANA LUZ ACOSTA DEMARES | D70: 0950 | E70: 0950-2020 | F70: AUXILIAR ADMINISTRATIVO-COORDINACION MEDICA | G70: 02 de marzo de 2020 | H70: 31 de marzo de 2020 | I70: 1900000 | J70: 1900000 | K70: LUIS GRANADOS GOMEZ | L70: COORD CENTRO DE SALUD | M70: 1177 | N70: 2058 | O70: 2020-03-16 | P70: =VLOOKUP(B70:B431,'[1]CONTRATACION MARZO '!$B$2:$AB$431,27,0) -> https://www.contratos.gov.co/consultas/detalleProceso.do?numConstancia=20-4-10587756
A71: 70 | B71: 22524112 | C71: DIANA SANDOVAL MANGA | D71: 0951 | E71: 0951-2020 | F71: ENFERMERA JEFE PROGRAMAS ESPECIALES | G71: 02 de marzo de 2020 | H71: 31 de marzo de 2020 | I71: 1900000 | J71: 1900000 | K71: LUIS CARLOS DE LEON BERNIER | L71: COORD CENTRO DE SALUD | M71: 1178 | N71: 2059 | O71: 2020-03-16 | P71: =VLOOKUP(B71:B431,'[1]CONTRATACION MARZO '!$B$2:$AB$431,27,0) -> https://www.contratos.gov.co/consultas/detalleProceso.do?numConstancia=20-4-10587784
A72: 71 | B72: 1052949649 | C72: DILIANA GARCIA JIMENEZ | D72: 0952 | E72: 0952-2020 | F72: ENFERMERA JEFE URGENCIAS | G72: 02 de marzo de 2020 | H72: 31 de marzo de 2020 | I72: 1900000 | J72: 1900000 | K72: WILFRAN JIMENEZ DE LA PEÑA | L72: COORD CENTRO DE SALUD | M72: 1179 | N72: 2060 | O72: 2020-03-16 | P72: =VLOOKUP(B72:B431,'[1]CONTRATACION MARZO '!$B$2:$AB$431,27,0) -> https://www.contratos.gov.co/consultas/detalleProceso.do?numConstancia=20-4-10587813
A73: 72 | B73: 1042420928 | C73: DINA DEL CARMEN CUELLO DONADO | D73: 0953 | E73: 0953-2020 | F73: AUXILIAR DE FACTURACION URGENCIA | G73: 02 de marzo de 2020 | H73: 31 de marzo de 2020 | I73: 1400000 | J73: 1400000 | K73: WILFRAN JIMENEZ DE LA PEÑA | L73: COORD CENTRO DE SALUD | M73: 1180 | N73: 2061 | O73: 2020-03-16 | P73: =VLOOKUP(B73:B431,'[1]CONTRATACION MARZO '!$B$2:$AB$431,27,0) -> https://www.contratos.gov.co/consultas/detalleProceso.do?numConstancia=20-4-10587822
A74: 73 | B74: 32818082 | C74: DIVINA LUZ NIETO ZAMBRANO | D74: 0954 | E74: 0954-2020 | F74: AUXILIAR SERVICIOS GENERALES URGENCIA | G74: 02 de marzo de 2020 | H74: 31 de marzo de 2020 | I74: 1378000 | J74: 1378000 | K74: SERGIO BOVEA MARIN | L74: COORD CENTRO DE SALUD | M74: 1181 | N74: 2062 | O74: 2020-03-16 | P74: =VLOOKUP(B74:B431,'[1]CONTRATACION MARZO '!$B$2:$AB$431,27,0) -> https://www.contratos.gov.co/consultas/detalleProceso.do?numConstancia=20-4-10587925
A75: 74 | B75: 32819600 | C75: DOLIS PEDROZO TORRES | D75: 0955 | E75: 0955-2020 | F75: AUXILIAR SERVICIOS GENERALES | G75: 02 de marzo de 2020 | H75: 31 de marzo de 2020 | I75: 1215000 | J75: 1215000 | K75: LUIS GRANADOS GOMEZ | L75: COORD CENTRO DE SALUD | M75: 1182 | N75: 2063 | O75: 2020-03-16 | P75: =VLOOKUP(B75:B431,'[1]CONTRATACION MARZO '!$B$2:$AB$431,27,0) -> https://www.contratos.gov.co/consultas/detalleProceso.do?numConstancia=20-4-10587939
A76: 75 | B76: 32741368 | C76: DOLLYS YERAYS GOMEZ RODRIGUEZ | D76: 0956 | E76: 0956-2020 | F76: ASISTENTE ADMINISTRATIVO- COORD MEDICA | G76: 02 de marzo de 2020 | H76: 31 de marzo de 2020 | I76: 1900000 | J76: 1900000 | K76: SERGIO BOVEA MARIN | L76: COORD CENTRO DE SALUD | M76: 1183 | N76: 2064 | O76: 2020-03-16 | P76: =VLOOKUP(B76:B431,'[1]CONTRATACION MARZO '!$B$2:$AB$431,27,0) -> https://www.contratos.gov.co/consultas/detalleProceso.do?numConstancia=20-4-10587978
A77: 76 | B77: 1043142073 | C77: DORALIZ ECHEVERRI PEREZ | D77: 0957 | E77: 0957-2020 | F77: GESTION DOCUMENTAL | G77: 02 de marzo de 2020 | H77: 31 de marzo de 2020 | I77: 1500000 | J77: 1500000 | K77: FABIAN COLPAS | L77: JEFE TALENTO HUMANO | M77: 1184 | N77: 2065 | O77: 2020-03-16 | P77: =VLOOKUP(B77:B431,'[1]CONTRATACION MARZO '!$B$2:$AB$431,27,0) -> https://www.contratos.gov.co/consultas/detalleProceso.do?numConstancia=20-4-10587988
A78: 77 | B78: 32769312 | C78: DORIS PADILLA MOLINA | D78: 0958 | E78: 0958-2020 | F78: AUXILIAR DE ODONTOLOGIA | G78: 02 de marzo de 2020 | H78: 31 de marzo de 2020 | I78: 1166000 | J78: 1166000 | K78: BETTY PERTUZ | L78: SUBGERENCIA CIENTIFICA | M78: 1185 | N78: 2066 | O78: 2020-03-16 | P78: =VLOOKUP(B78:B431,'[1]CONTRATACION MARZO '!$B$2:$AB$431,27,0) -> https://www.contratos.gov.co/consultas/detalleProceso.do?numConstancia=20-4-10588024
A79: 78 | B79: 22647051 | C79: EDELMIRA DUQUE LAMADRID | D79: 0959 | E79: 0959-2020 | F79: FISIOTERAPEUTA | G79: 02 de marzo de 2020 | H79: 31 de marzo de 2020 | I79: 1900000 | J79: 1900000 | K79: CARLOS VISBAL JIMENEZ | L79: COORD CENTRO DE SALUD | M79: 1186 | N79: 2067 | O79: 2020-03-16 | P79: =VLOOKUP(B79:B431,'[1]CONTRATACION MARZO '!$B$2:$AB$431,27,0) -> https://www.contratos.gov.co/consultas/detalleProceso.do?numConstancia=20-4-10588043
A80: 79 | B80: 8735248 | C80: EDGAR CERVANTES MELGAREJO | D80: 0960 | E80: 0960-2020 | F80: MEDICO P Y P | G80: 02 de marzo de 2020 | H80: 31 de marzo de 2020 | I80: 2120000 | J80: 2120000 | K80: WILFRAN JIMENEZ DE LA PEÑA | L80: COORD CENTRO DE SALUD | M80: 1187 | N80: 2068 | O80: 2020-03-16 | P80: =VLOOKUP(B80:B431,'[1]CONTRATACION MARZO '!$B$2:$AB$431,27,0) -> https://www.contratos.gov.co/consultas/detalleProceso.do?numConstancia=20-4-10588058
A81: 80 | B81: 72181563 | C81: EDGARDO THORNE GLENN | D81: 0961 | E81: 0961-2020 | F81: ODONTOLOGO | G81: 02 de marzo de 2020 | H81: 31 de marzo de 2020 | I81: 1900000 | J81: 1900000 | K81: WILFRAN JIMENEZ DE LA PEÑA | L81: COORD CENTRO DE SALUD | M81: 1188 | N81: 2069 | O81: 2020-03-16 | P81: =VLOOKUP(B81:B431,'[1]CONTRATACION MARZO '!$B$2:$AB$431,27,0) -> https://www.contratos.gov.co/consultas/detalleProceso.do?numConstancia=20-4-10588080
A82: 81 | B82: 78302933 | C82: EDIE JAIR GIL | D82: 0962 | E82: 0962-2020 | F82: TECNOLOGO EN RADIOLOGIA | G82: 02 de marzo de 2020 | H82: 31 de marzo de 2020 | I82: 1500000 | J82: 1500000 | K82: WILFRAN JIMENEZ DE LA PEÑA | L82: COORD CENTRO DE SALUD | M82: 1189 | N82: 2070 | O82: 2020-03-16 | P82: =VLOOKUP(B82:B431,'[1]CONTRATACION MARZO '!$B$2:$AB$431,27,0) -> https://www.contratos.gov.co/consultas/detalleProceso.do?numConstancia=20-4-10588096
A83: 82 | B83: 1045700355 | C83: EDUARDO LUIS PAUTH HERNANDEZ | D83: 0963 | E83: 0963-2020 | F83: MEDICO CONSULTA EXTERNA | G83: 02 de marzo de 2020 | H83: 31 de marzo de 2020 | I83: 3180000 | J83: 3180000 | K83: BETTY PERTUZ | L83: SUBGERENCIA CIENTIFICA | M83: 1190 | N83: 2071 | O83: 2020-03-16 | P83: =VLOOKUP(B83:B431,'[1]CONTRATACION MARZO '!$B$2:$AB$431,27,0) -> https://www.contratos.gov.co/consultas/detalleProceso.do?numConstancia=20-4-10588119
A84: 83 | B84: 8734956 | C84: EFRAIN CANTILLO GUERRERO | D84: 0964 | E84: 0964-2020 | F84: CONDUCTOR DE AMBULANCIA | G84: 02 de marzo de 2020 | H84: 31 de marzo de 2020 | I84: 1800000 | J84: 1800000 | K84: BETTY PERTUZ | L84: SUBGERENCIA CIENTIFICA | M84: 1191 | N84: 2072 | O84: 2020-03-16 | P84: =VLOOKUP(B84:B431,'[1]CONTRATACION MARZO '!$B$2:$AB$431,27,0) -> https://www.contratos.gov.co/consultas/detalleProceso.do?numConstancia=20-4-10588167
A85: 84 | B85: 8750161 | C85: EFRAIN DE LA HOZ ROCHEL | D85: 0965 | E85: 0965-2020 | F85: MEDICO DE URGENCIA | G85: 02 de marzo de 2020 | H85: 31 de marzo de 2020 | I85: 2560000 | J85: 2560000 | K85: WILFRAN JIMENEZ DE LA PEÑA | L85: COORD CENTRO DE SALUD | M85: 1192 | N85: 2073 | O85: 2020-03-16 | P85: =VLOOKUP(B85:B431,'[1]CONTRATACION MARZO '!$B$2:$AB$431,27,0) -> https://www.contratos.gov.co/consultas/detalleProceso.do?numConstancia=20-4-10588234
A86: 85 | B86: 22704983 | C86: EGUIS ODILA ROLONG LAGUNA | D86: 0966 | E86: 0966-2020 | F86: ABOGADO EXTERNO | G86: 02 de marzo de 2020 | H86: 31 de marzo de 2020 | I86: 4000000 | J86: 4000000 | K86: FABIAN COLPAS | L86: JEFE TALENTO HUMANO | M86: 1193 | N86: 2074 | O86: 2020-03-16 | P86: =VLOOKUP(B86:B431,'[1]CONTRATACION MARZO '!$B$2:$AB$431,27,0) -> https://www.contratos.gov.co/consultas/detalleProceso.do?numConstancia=20-4-10588245
A87: 86 | B87: 1045675420 | C87: EIBANIA MOLINA VENERA | D87: 0967 | E87: 0967-2020 | F87: AUXILIAR DE ENFERMERIA URGENCIAS | G87: 02 de marzo de 2020 | H87: 31 de marzo de 2020 | I87: 1378000 | J87: 1378000 | K87: WILFRAN JIMENEZ DE LA PEÑA | L87: COORD CENTRO DE SALUD | M87: 1194 | N87: 2075 | O87: 2020-03-16 | P87: =VLOOKUP(B87:B431,'[1]CONTRATACION MARZO '!$B$2:$AB$431,27,0) -> https://www.contratos.gov.co/consultas/detalleProceso.do?numConstancia=20-4-10588258
A88: 87 | B88: 22570149 | C88: ELENA BAENA PEÑA | D88: 0968 | E88: 0968-2020 | F88: AUXILIAR DE FACTURACION URGENCIA | G88: 02 de marzo de 2020 | H88: 31 de marzo de 2020 | I88: 1400000 | J88: 1400000 | K88: SANDRA SANMARTIN | L88: SUBGERENCIA ADMINISTRATIVA | M88: 1195 | N88: 2076 | O88: 2020-03-16 | P88: =VLOOKUP(B88:B431,'[1]CONTRATACION MARZO '!$B$2:$AB$431,27,0) -> https://www.contratos.gov.co/consultas/detalleProceso.do?numConstancia=20-4-10588280
A89: 88 | B89: 32772038 | C89: ELIANA BEATRIZ ABRIL DE LA ROSA | D89: 0969 | E89: 0969-2020 | F89: AUXILIAR ADMINISTRATIVO - RECURSOS HUMANOS | G89: 02 de marzo de 2020 | H89: 31 de marzo de 2020 | I89: 1900000 | J89: 1900000 | K89: FABIAN COLPAS | L89: JEFE TALENTO HUMANO | M89: 1196 | N89: 2077 | O89: 2020-03-16 | P89: =VLOOKUP(B89:B431,'[1]CONTRATACION MARZO '!$B$2:$AB$431,27,0) -> https://www.contratos.gov.co/consultas/detalleProceso.do?numConstancia=20-4-10588355
A90: 89 | B90: 32787164 | C90: ELIANA CONSTANZA ARTETA HOYOS | D90: 0970 | E90: 0970-2020 | F90: CONTADOR | G90: 02 de marzo de 2020 | H90: 31 de marzo de 2020 | I90: 4000000 | J90: 4000000 | K90: SANDRA SANMARTIN | L90: SUBGERENCIA ADMINISTRATIVA | M90: 1197 | N90: 2078 | O90: 2020-03-16 | P90: =VLOOKUP(B90:B431,'[1]CONTRATACION MARZO '!$B$2:$AB$431,27,0) -> https://www.contratos.gov.co/consultas/detalleProceso.do?numConstancia=20-4-10588393
A91: 90 | B91: 8762665 | C91: ELIECER DE JESUS CALLE QUINTERO | D91: 0971 | E91: 0971-2020 | F91: TECNICO ALMACEN | G91: 02 de marzo de 2020 | H91: 31 de marzo de 2020 | I91: 1900000 | J91: 1900000 | K91: MARIA SANCHEZ AYALA | L91: JEFE DE ALMACEN | M91: 1198 | N91: 2079 | O91: 2020-03-16 | P91: =VLOOKUP(B91:B431,'[1]CONTRATACION MARZO '!$B$2:$AB$431,27,0) -> https://www.contratos.gov.co/consultas/detalleProceso.do?numConstancia=20-4-10590292
A92: 91 | B92: 8633055 | C92: ELIECER POLO CASTRO | D92: 0972 | E92: 0972-2020 | F92: ABOGADO EXTERNO | G92: 02 de marzo de 2020 | H92: 31 de marzo de 2020 | I92: 5800000 | J92: 5800000 | K92: ORNELLA FIORENTINO | L92: JEFE DE JURIDICA | M92: 1199 | N92: 2080 | O92: 2020-03-16 | P92: =VLOOKUP(B92:B431,'[1]CONTRATACION MARZO '!$B$2:$AB$431,27,0) -> https://www.contratos.gov.co/consultas/detalleProceso.do?numConstancia=20-4-10590298
A93: 92 | B93: 1007045398 | C93: ELIEZER VEGA ARAGON | D93: 0973 | E93: 0973-2020 | F93: AUXILIAR DE ARCHIVO | G93: 02 de marzo de 2020 | H93: 31 de marzo de 2020 | I93: 1500000 | J93: 1500000 | K93: SANDRA SANMARTIN | L93: SUBGERENCIA ADMINISTRATIVA | M93: 1200 | N93: 2081 | O93: 2020-03-16 | P93: =VLOOKUP(B93:B431,'[1]CONTRATACION MARZO '!$B$2:$AB$431,27,0) -> https://www.contratos.gov.co/consultas/detalleProceso.do?numConstancia=20-4-10590298
A94: 93 | B94: 32871139 | C94: ELLA VIZCAINO SENIOR | D94: 0974 | E94: 0974-2020 | F94: ENFERMERA JEFE | G94: 02 de marzo de 2020 | H94: 31 de marzo de 2020 | I94: 2300000 | J94: 2300000 | K94: NILSA ARIZA MARQUEZ | L94: COORDINADOR PYP | M94: 1201 | N94: 2082 | O94: 2020-03-16 | P94: =VLOOKUP(B94:B431,'[1]CONTRATACION MARZO '!$B$2:$AB$431,27,0) -> https://www.contratos.gov.co/consultas/detalleProceso.do?numConstancia=20-4-10590305
A95: 94 | B95: 32583401 | C95: ELSY LIZETH CHARRIS CONTRERAS | D95: 0975 | E95: 0975-2020 | F95: MEDICO CONSULTA EXTERNA | G95: 02 de marzo de 2020 | H95: 31 de marzo de 2020 | I95: 2120000 | J95: 2120000 | K95: VICTOR MIRANDA | L95: COORD CENTRO DE SALUD | M95: 1202 | N95: 2083 | O95: 2020-03-16 | P95: =VLOOKUP(B95:B431,'[1]CONTRATACION MARZO '!$B$2:$AB$431,27,0) -> https://www.contratos.gov.co/consultas/detalleProceso.do?numConstancia=20-4-10590324
A96: 95 | B96: 1042436156 | C96: EMELY ESCORCIA MARTINEZ | D96: 0976 | E96: 0976-2020 | F96: ENFERMERA JEFE URGENCIAS | G96: 02 de marzo de 2020 | H96: 31 de marzo de 2020 | I96: 1900000 | J96: 1900000 | K96: SERGIO BOVEA MARIN | L96: COORD CENTRO DE SALUD | M96: 1203 | N96: 2084 | O96: 2020-03-16 | P96: =VLOOKUP(B96:B431,'[1]CONTRATACION MARZO '!$B$2:$AB$431,27,0) -> https://www.contratos.gov.co/consultas/detalleProceso.do?numConstancia=20-4-10590338
A97: 96 | B97: 22693401 | C97: EMILIA ANTONIA BARCELO DE PARRA | D97: 0977 | E97: 0977-2020 | F97: AUXILIAR SERVICIOS GENERALES URGENCIA | G97: 02 de marzo de 2020 | H97: 31 de marzo de 2020 | I97: 1378000 | J97: 1378000 | K97: SERGIO BOVEA MARIN | L97: COORD CENTRO DE SALUD | M97: 1204 | N97: 2085 | O97: 2020-03-16 | P97: =VLOOKUP(B97:B431,'[1]CONTRATACION MARZO '!$B$2:$AB$431,27,0) -> https://www.contratos.gov.co/consultas/detalleProceso.do?numConstancia=20-4-10590345
A98: 97 | B98: 1140831753 | C98: ENNY CAROLINA ROCHA HERNANDEZ | D98: 0978 | E98: 0978-2020 | F98: ABOGADO EXTERNO | G98: 02 de marzo de 2020 | H98: 31 de marzo de 2020 | I98: 5000000 | J98: 5000000 | K98: ORNELLA FIORENTINO | L98: JEFE DE JURIDICA | M98: 1205 | N98: 2086 | O98: 2020-03-16 | P98: =VLOOKUP(B98:B431,'[1]CONTRATACION MARZO '!$B$2:$AB$431,27,0) -> https://www.contratos.gov.co/consultas/detalleProceso.do?numConstancia=20-4-10590355
A99: =+A98+1 -> 98 | B99: 8718276 | C99: ENRIQUE PACHECO PACHECO | D99: 0979 | E99: 0979-2020 | F99: MEDICO DE URGENCIA | G99: 02 de marzo de 2020 | H99: 31 de marzo de 2020 | I99: 2560000 | J99: 2560000 | K99: WILFRAN JIMENEZ DE LA PEÑA | L99: COORD CENTRO DE SALUD | M99: 1206 | N99: 2087 | O99: 2020-03-16 | P99: =VLOOKUP(B99:B431,'[1]CONTRATACION MARZO '!$B$2:$AB$431,27,0) -> https://www.contratos.gov.co/consultas/detalleProceso.do?numConstancia=20-4-10590376
A100: 99 | B100: 32866006 | C100: ERIKA ASCENCIO MARQUEZ | D100: 0980 | E100: 0980-2020 | F100: AUXILIAR ADMINISTRATIVO | G100: 02 de marzo de 2020 | H100: 31 de marzo de 2020 | I100: 3500000 | J100: 3500000 | K100: ORNELLA FIORENTINO | L100: JEFE DE JURIDICA | M100: 1207 | N100: 2088 | O100: 2020-03-16 | P100: =VLOOKUP(B100:B431,'[1]CONTRATACION MARZO '!$B$2:$AB$431,27,0) -> https://www.contratos.gov.co/consultas/detalleProceso.do?numConstancia=20-4-10590388
A101: 100 | B101: 1143147791 | C101: ERNESTO JUNIOR ROJANO MEZA | D101: 0981 | E101: 0981-2020 | F101: TECNOLOGO EN RADIOLOGIA | G101: 02 de marzo de 2020 | H101: 31 de marzo de 2020 | I101: 1500000 | J101: 1500000 | K101: WILFRAN JIMENEZ DE LA PEÑA | L101: COORD CENTRO DE SALUD | M101: 1208 | N101: 2089 | O101: 2020-03-16 | P101: =VLOOKUP(B101:B431,'[1]CONTRATACION MARZO '!$B$2:$AB$431,27,0) -> https://www.contratos.gov.co/consultas/detalleProceso.do?numConstancia=20-4-10590401
A102: 101 | B102: 22732766 | C102: ESMIRIS MARIA JIMENEZ GOMEZ | D102: 0982 | E102: 0982-2020 | F102: AUXILIAR SERVICIOS GENERALES | G102: 02 de marzo de 2020 | H102: 31 de marzo de 2020 | I102: 1215000 | J102: 1215000 | K102: YARELIS GUERRA CORREA | L102: COORD CENTRO DE SALUD | M102: 1209 | N102: 2090 | O102: 2020-03-16 | P102: =VLOOKUP(B102:B431,'[1]CONTRATACION MARZO '!$B$2:$AB$431,27,0) -> https://www.contratos.gov.co/consultas/detalleProceso.do?numConstancia=20-4-10590413
A103: 102 | B103: 32821813 | C103: ESPERANZA OROZCO MORENO | D103: 0983 | E103: 0983-2020 | F103: AUXILIAR DE ENFERMERIA URGENCIAS | G103: 02 de marzo de 2020 | H103: 31 de marzo de 2020 | I103: 1378000 | J103: 1378000 | K103: SERGIO BOVEA MARIN | L103: COORD CENTRO DE SALUD | M103: 1210 | N103: 2091 | O103: 2020-03-16 | P103: =VLOOKUP(B103:B431,'[1]CONTRATACION MARZO '!$B$2:$AB$431,27,0) -> https://www.contratos.gov.co/consultas/detalleProceso.do?numConstancia=20-4-10590419
A104: 103 | B104: 44157204 | C104: ESTHER CECILIA SOLANO BARROS | D104: 0984 | E104: 0984-2020 | F104: MEDICO DE URGENCIA | G104: 02 de marzo de 2020 | H104: 31 de marzo de 2020 | I104: 2560000 | J104: 2560000 | K104: WILFRAN JIMENEZ DE LA PEÑA | L104: COORD CENTRO DE SALUD | M104: 1211 | N104: 2092 | O104: 2020-03-16 | P104: =VLOOKUP(B104:B431,'[1]CONTRATACION MARZO '!$B$2:$AB$431,27,0) -> https://www.contratos.gov.co/consultas/detalleProceso.do?numConstancia=20-4-10590433
A105: 104 | B105: 33107141 | C105: ESTELA MARÍA SOLANO YEPEZ | D105: 0985 | E105: 0985-2020 | F105: VACUNADORA | G105: 02 de marzo de 2020 | H105: 21 de marzo de 2020 | I105: 933333 | J105: 933333 | K105: NILSA ARIZA MARQUEZ | L105: COORDINADOR PYP | M105: 1212 | N105: 2093 | O105: 2020-03-16 | P105: =VLOOKUP(B105:B431,'[1]CONTRATACION MARZO '!$B$2:$AB$431,27,0) -> https://www.contratos.gov.co/consultas/detalleProceso.do?numConstancia=20-4-10590453
A106: 105 | B106: 44150678 | C106: EUCARIS DEL CARMEN RAMBAO NIEBLES | D106: 0986 | E106: 0986-2020 | F106: MEDICO CONSULTA EXTERNA | G106: 02 de marzo de 2020 | H106: 31 de marzo de 2020 | I106: 2120000 | J106: 2120000 | K106: VICTOR MIRANDA | L106: COORD CENTRO DE SALUD | M106: 1213 | N106: 2094 | O106: 2020-03-16 | P106: =VLOOKUP(B106:B431,'[1]CONTRATACION MARZO '!$B$2:$AB$431,27,0) -> https://www.contratos.gov.co/consultas/detalleProceso.do?numConstancia=20-4-10590477
A107: 106 | B107: 60311278 | C107: EVA FLOREZ PARRA | D107: 0987 | E107: 0987-2020 | F107: MÉDICO CONSULTA EXTERNA Y APOYO A LA COORDINACIÓN MÉDICA | G107: 02 de marzo de 2020 | H107: 31 de marzo de 2020 | I107: 2500000 | J107: 2500000 | K107: AIX PALACIO | L107: COORD CENTRO DE SALUD | M107: 1214 | N107: 2095 | O107: 2020-03-16 | P107: =VLOOKUP(B107:B431,'[1]CONTRATACION MARZO '!$B$2:$AB$431,27,0) -> https://www.contratos.gov.co/consultas/detalleProceso.do?numConstancia=20-4-10590499
A108: 107 | B108: 32583911 | C108: EVA ISABEL ROSALES NAVARRO | D108: 0988 | E108: 0988-2020 | F108: ASESOR GERENCIA | G108: 02 de marzo de 2020 | H108: 31 de marzo de 2020 | I108: 5000000 | J108: 5000000 | K108: ROSA MADERA | L108: GERENTE | M108: 1215 | N108: 2096 | O108: 2020-03-16 | P108: =VLOOKUP(B108:B431,'[1]CONTRATACION MARZO '!$B$2:$AB$431,27,0) -> https://www.contratos.gov.co/consultas/detalleProceso.do?numConstancia=20-4-10590721
A109: 108 | B109: 1074712390 | C109: EVELIN CRISTINA ZULETA SANCHEZ | D109: 0989 | E109: 0989-2020 | F109: ENFERMERA JEFE P Y P | G109: 02 de marzo de 2020 | H109: 31 de marzo de 2020 | I109: 2300000 | J109: 2300000 | K109: NILSA ARIZA MARQUEZ | L109: COORDINADOR PYP | M109: 1216 | N109: 2097 | O109: 2020-03-16 | P109: =VLOOKUP(B109:B431,'[1]CONTRATACION MARZO '!$B$2:$AB$431,27,0) -> https://www.contratos.gov.co/consultas/detalleProceso.do?numConstancia=20-4-10590734
A110: 109 | B110: 72170268 | C110: FABIAN FERNANDO MERCADO | D110: 0990 | E110: 0990-2020 | F110: DIGITADOR PAI WEB | G110: 02 de marzo de 2020 | H110: 31 de marzo de 2020 | I110: 1905000 | J110: 1905000 | K110: NILSA ARIZA MARQUEZ | L110: COORDINADOR PYP | M110: 1217 | N110: 2098 | O110: 2020-03-16 | P110: =VLOOKUP(B110:B431,'[1]CONTRATACION MARZO '!$B$2:$AB$431,27,0) -> https://www.contratos.gov.co/consultas/detalleProceso.do?numConstancia=20-4-10590752
A111: 110 | B111: 8705578 | C111: FERMIN NAVARRO STEFANELL | D111: 0991 | E111: 0991-2020 | F111: GINECOLOGO | G111: 02 de marzo de 2020 | H111: 31 de marzo de 2020 | I111: 8000000 | J111: 8000000 | K111: NILSA ARIZA MARQUEZ | L111: COORDINADOR PYP | M111: 1218 | N111: 2099 | O111: 2020-03-16 | P111: =VLOOKUP(B111:B431,'[1]CONTRATACION MARZO '!$B$2:$AB$431,27,0) -> https://www.contratos.gov.co/consultas/detalleProceso.do?numConstancia=20-4-10590787
A112: 111 | B112: 1129520650 | C112: FERNANDO LUIS CERA DIAZ | D112: 0992 | E112: 0992-2020 | F112: MEDICO DE URGENCIA | G112: 02 de marzo de 2020 | H112: 31 de marzo de 2020 | I112: 2560000 | J112: 2560000 | K112: WILFRAN JIMENEZ DE LA PEÑA | L112: COORD CENTRO DE SALUD | M112: 1219 | N112: 2100 | O112: 2020-03-16 | P112: =VLOOKUP(B112:B431,'[1]CONTRATACION MARZO '!$B$2:$AB$431,27,0) -> https://www.contratos.gov.co/consultas/detalleProceso.do?numConstancia=20-4-10590824
A113: 112 | B113: 44159527 | C113: FLORINDA DE LA HOZ PACHECO | D113: 0993 | E113: 0993-2020 | F113: ENFERMERA JEFE P Y P | G113: 02 de marzo de 2020 | H113: 31 de marzo de 2020 | I113: 2300000 | J113: 2300000 | K113: NILSA ARIZA MARQUEZ | L113: COORDINADOR PYP | M113: 1220 | N113: 2101 | O113: 2020-03-16 | P113: =VLOOKUP(B113:B431,'[1]CONTRATACION MARZO '!$B$2:$AB$431,27,0) -> https://www.contratos.gov.co/consultas/detalleProceso.do?numConstancia=20-4-10591035
A114: 113 | B114: 72328953 | C114: FRANCISCO ALCIDES CARRANZA MENDOZA | D114: 0994 | E114: 0994-2020 | F114: AUXILIAR RECURSOS FISICOS | G114: 02 de marzo de 2020 | H114: 13 de marzo de 2020 | I114: 760000 | J114: 760000 | K114: SANDRA SANMARTIN | L114: SUBGERENCIA ADMINISTRATIVA | M114: 1221 | N114: 2102 | O114: 2020-03-16 | P114: =VLOOKUP(B114:B431,'[1]CONTRATACION MARZO '!$B$2:$AB$431,27,0) -> https://www.contratos.gov.co/consultas/detalleProceso.do?numConstancia=20-4-10591066
A115: 114 | B115: 8507198 | C115: FRANCISCO PEÑALOZA PEREZ | D115: 0995 | E115: 0995-2020 | F115: MEDICO CONSULTA EXTERNA | G115: 02 de marzo de 2020 | H115: 31 de marzo de 2020 | I115: 2120000 | J115: 2120000 | K115: LUIS GRANADOS GOMEZ | L115: COORD CENTRO DE SALUD | M115: 1222 | N115: 2103 | O115: 2020-03-16 | P115: =VLOOKUP(B115:B431,'[1]CONTRATACION MARZO '!$B$2:$AB$431,27,0) -> https://www.contratos.gov.co/consultas/detalleProceso.do?numConstancia=20-4-10591107
A116: 115 | B116: 8750355 | C116: FREDDY BARCELO DONADO | D116: 0996 | E116: 0996-2020 | F116: AUXILIAR DE ARCHIVO | G116: 02 de marzo de 2020 | H116: 31 de marzo de 2020 | I116: 1500000 | J116: 1500000 | K116: SANDRA SANMARTIN | L116: SUBGERENCIA ADMINISTRATIVA | M116: 1223 | N116: 2104 | O116: 2020-03-16 | P116: =VLOOKUP(B116:B431,'[1]CONTRATACION MARZO '!$B$2:$AB$431,27,0) -> https://www.contratos.gov.co/consultas/detalleProceso.do?numConstancia=20-4-10591126
A117: 116 | B117: 9132998 | C117: GABRIEL ARIAS RAMIREZ | D117: 0997 | E117: 0997-2020 | F117: QUIMICO FARMACEUTICO | G117: 02 de marzo de 2020 | H117: 31 de marzo de 2020 | I117: 3000000 | J117: 3000000 | K117: BETTY PERTUZ | L117: SUBGERENCIA CIENTIFICA | M117: 1224 | N117: 2105 | O117: 2020-03-16 | P117: =VLOOKUP(B117:B431,'[1]CONTRATACION MARZO '!$B$2:$AB$431,27,0) -> https://www.contratos.gov.co/consultas/detalleProceso.do?numConstancia=20-4-10591149
A118: 117 | B118: 1042416953 | C118: GABRIEL JOSE MONTIEL CERVANTES | D118: 0998 | E118: 0998-2020 | F118: COORDINADOR DE HARDWARE | G118: 02 de marzo de 2020 | H118: 31 de marzo de 2020 | I118: 3000000 | J118: 3000000 | K118: ZULI ROMERO | L118: COORDINADORA TIC | M118: 1225 | N118: 2106 | O118: 2020-03-16 | P118: =VLOOKUP(B118:B431,'[1]CONTRATACION MARZO '!$B$2:$AB$431,27,0) -> https://www.contratos.gov.co/consultas/detalleProceso.do?numConstancia=20-4-10591243
A119: 118 | B119: 32756610 | C119: GENNY GUZMAN NAVARRO | D119: 0999 | E119: 0999-2020 | F119: MEDICO DE URGENCIA | G119: 02 de marzo de 2020 | H119: 31 de marzo de 2020 | I119: 2560000 | J119: 2560000 | K119: WILFRAN JIMENEZ DE LA PEÑA | L119: COORD CENTRO DE SALUD | M119: 1226 | N119: 2107 | O119: 2020-03-16 | P119: =VLOOKUP(B119:B431,'[1]CONTRATACION MARZO '!$B$2:$AB$431,27,0) -> https://www.contratos.gov.co/consultas/detalleProceso.do?numConstancia=20-4-10591279
A120: 119 | B120: 8.756.266 | C120: GEOVANNY ESCORCIA JIMENEZ | D120: 1000 | E120: 1000-2020 | F120: AUXILIAR DE ARCHIVO | G120: 02 de marzo de 2020 | H120: 31 de marzo de 2020 | I120: 1500000 | J120: 1500000 | K120: SANDRA SANMARTIN | L120: SUBGERENCIA ADMINISTRATIVA | M120: 1227 | N120: 2108 | O120: 2020-03-16 | P120: =VLOOKUP(B120:B431,'[1]CONTRATACION MARZO '!$B$2:$AB$431,27,0) -> https://www.contratos.gov.co/consultas/detalleProceso.do?numConstancia=20-4-10591315
A121: 120 | B121: 1042448309 | C121: GERALDINE ALEXANDRA MEDRANO IGLESIAS | D121: 1001 | E121: 1001-2020 | F121: AUXILIAR DE ARCHIVO | G121: 02 de marzo de 2020 | H121: 31 de marzo de 2020 | I121: 1500000 | J121: 1500000 | K121: SANDRA SANMARTIN | L121: SUBGERENCIA ADMINISTRATIVA | M121: 1228 | N121: 2109 | O121: 2020-03-16 | P121: =VLOOKUP(B121:B431,'[1]CONTRATACION MARZO '!$B$2:$AB$431,27,0) -> https://www.contratos.gov.co/consultas/detalleProceso.do?numConstancia=20-4-10591330
A122: 121 | B122: 1042448518 | C122: GIANINA ANDREA GRAVINI DE LA HOZ | D122: 1002 | E122: 1002-2020 | F122: MEDICO DE URGENCIA | G122: 02 de marzo de 2020 | H122: 31 de marzo de 2020 | I122: 2560000 | J122: 2560000 | K122: WILFRAN JIMENEZ DE LA PEÑA | L122: COORD CENTRO DE SALUD | M122: 1229 | N122: 2110 | O122: 2020-03-16 | P122: =VLOOKUP(B122:B431,'[1]CONTRATACION MARZO '!$B$2:$AB$431,27,0) -> https://www.contratos.gov.co/consultas/detalleProceso.do?numConstancia=20-4-10591357
A123: 122 | B123: 1042448135 | C123: GISELLA CAMILA ACOSTA SEGURA | D123: 1003 | E123: 1003-2020 | F123: AUXILIAR SERVICIOS AMIGABLES | G123: 02 de marzo de 2020 | H123: 31 de marzo de 2020 | I123: 1500000 | J123: 1500000 | K123: LUIS GRANADOS GOMEZ | L123: COORD CENTRO DE SALUD | M123: 1230 | N123: 2111 | O123: 2020-03-16 | P123: =VLOOKUP(B123:B431,'[1]CONTRATACION MARZO '!$B$2:$AB$431,27,0) -> https://www.contratos.gov.co/consultas/detalleProceso.do?numConstancia=20-4-10591373
A124: 123 | B124: 44156926 | C124: GLADYS CECILIA ESCALANTE FERRER | D124: 1004 | E124: 1004-2020 | F124: ODONTOLOGO | G124: 02 de marzo de 2020 | H124: 31 de marzo de 2020 | I124: 1900000 | J124: 1900000 | K124: DIANA MARTINEZ PACHECO | L124: COORD CENTRO DE SALUD | M124: 1231 | N124: 2112 | O124: 2020-03-16 | P124: =VLOOKUP(B124:B431,'[1]CONTRATACION MARZO '!$B$2:$AB$431,27,0) -> https://www.contratos.gov.co/consultas/detalleProceso.do?numConstancia=20-4-10591393
A125: 124 | B125: 49555306 | C125: GLADYS DIAZ MARIN | D125: 1005 | E125: 1005-2020 | F125: AUXILIAR DE FACTURACION URGENCIA | G125: 02 de marzo de 2020 | H125: 31 de marzo de 2020 | I125: 1400000 | J125: 1400000 | K125: SANDRA SANMARTIN | L125: SUBGERENCIA ADMINISTRATIVA | M125: 1232 | N125: 2113 | O125: 2020-03-16 | P125: =VLOOKUP(B125:B431,'[1]CONTRATACION MARZO '!$B$2:$AB$431,27,0) -> https://www.contratos.gov.co/consultas/detalleProceso.do?numConstancia=20-4-10591405
A126: 125 | B126: 24341220 | C126: GLADYS OTALVARO BOTERO | D126: 1006 | E126: 1006-2020 | F126: AGENTE CALL CENTER | G126: 02 de marzo de 2020 | H126: 31 de marzo de 2020 | I126: 1378000 | J126: 1378000 | K126: WILFRAN JIMENEZ DE LA PEÑA | L126: COORD CENTRO DE SALUD | M126: 1233 | N126: 2114 | O126: 2020-03-16 | P126: =VLOOKUP(B126:B431,'[1]CONTRATACION MARZO '!$B$2:$AB$431,27,0) -> https://www.contratos.gov.co/consultas/detalleProceso.do?numConstancia=20-4-10591421
A127: 126 | B127: 22644596 | C127: GRACIELA BUSTOS RIVEROS | D127: 1007 | E127: 1007-2020 | F127: AUXILIAR ADMINISTRATIVO DE FACTURACIÒN | G127: 02 de marzo de 2020 | H127: 31 de marzo de 2020 | I127: 1600000 | J127: 1600000 | K127: SANDRA SANMARTIN | L127: SUBGERENCIA ADMINISTRATIVA | M127: 1234 | N127: 2115 | O127: 2020-03-16 | P127: =VLOOKUP(B127:B431,'[1]CONTRATACION MARZO '!$B$2:$AB$431,27,0) -> https://www.contratos.gov.co/consultas/detalleProceso.do?numConstancia=20-4-10591476
A128: 127 | B128: 30568187 | C128: HAIDE MEJIA PRADO | D128: 1008 | E128: 1008-2020 | F128: AUXILIAR SERVICIOS GENERALES URGENCIA | G128: 02 de marzo de 2020 | H128: 31 de marzo de 2020 | I128: 1378000 | J128: 1378000 | K128: WILFRAN JIMENEZ DE LA PEÑA | L128: COORD CENTRO DE SALUD | M128: 1235 | N128: 2116 | O128: 2020-03-16 | P128: =VLOOKUP(B128:B431,'[1]CONTRATACION MARZO '!$B$2:$AB$431,27,0) -> https://www.contratos.gov.co/consultas/detalleProceso.do?numConstancia=20-4-10591497
A129: 128 | B129: 44154490 | C129: HEIDY LUZ CARRILLO DIAZ | D129: 1009 | E129: 1009-2020 | F129: AUXILIAR ADMINISTRATIVO DE FACTURACIÒN | G129: 02 de marzo de 2020 | H129: 31 de marzo de 2020 | I129: 1900000 | J129: 1900000 | K129: LUIS GRANADOS GOMEZ | L129: COORD CENTRO DE SALUD | M129: 1236 | N129: 2117 | O129: 2020-03-16 | P129: =VLOOKUP(B129:B431,'[1]CONTRATACION MARZO '!$B$2:$AB$431,27,0) -> https://www.contratos.gov.co/consultas/detalleProceso.do?numConstancia=20-4-10591517
A130: 129 | B130: 1042440903 | C130: HEIDY MARTINEZ GUTIERREZ | D130: 1010 | E130: 1010-2020 | F130: AUXILIAR DE FACTURACION URGENCIA | G130: 02 de marzo de 2020 | H130: 31 de marzo de 2020 | I130: 1400000 | J130: =I130*1 -> 1400000 | K130: SANDRA SANMARTIN | L130: SUBGERENCIA ADMINISTRATIVA | M130: 1237 | N130: 2118 | O130: 2020-03-16 | P130: =VLOOKUP(B130:B431,'[1]CONTRATACION MARZO '!$B$2:$AB$431,27,0) -> https://www.contratos.gov.co/consultas/detalleProceso.do?numConstancia=20-4-10591543
A131: =+A130+1 -> 130 | B131: 1045670289 | C131: HOLMAN ALEXANDER AVILA FERNANDEZ | D131: 1011 | E131: 1011-2020 | F131: FACTURACION CENTRAL | G131: 02 de marzo de 2020 | H131: 31 de marzo de 2020 | I131: 2500000 | J131: 2500000 | K131: SANDRA SANMARTIN | L131: SUBGERENCIA ADMINISTRATIVA | M131: 1238 | N131: 2119 | O131: 2020-03-16 | P131: =VLOOKUP(B131:B431,'[1]CONTRATACION MARZO '!$B$2:$AB$431,27,0) -> https://www.contratos.gov.co/consultas/detalleProceso.do?numConstancia=20-4-10591566
A132: 131 | B132: 72227312 | C132: HUGO CHARRIS PEREZ | D132: 1012 | E132: 1012-2020 | F132: AUXILIAR DE ARCHIVO | G132: 02 de marzo de 2020 | H132: 31 de marzo de 2020 | I132: 1500000 | J132: 1500000 | K132: SANDRA SANMARTIN | L132: SUBGERENCIA ADMINISTRATIVA | M132: 1239 | N132: 2120 | O132: 2020-03-16 | P132: =VLOOKUP(B132:B431,'[1]CONTRATACION MARZO '!$B$2:$AB$431,27,0) -> https://www.contratos.gov.co/consultas/detalleProceso.do?numConstancia=20-4-10591579
A133: 132 | B133: 72045976 | C133: HUMBERTO ZACARIAS CADAVID ALDANA | D133: 1013 | E133: 1013-2020 | F133: ASESOR GERENCIA | G133: 02 de marzo de 2020 | H133: 31 de marzo de 2020 | I133: 4000000 | J133: 4000000 | K133: ROSA MADERA | L133: GERENTE | M133: 1240 | N133: 2121 | O133: 2020-03-16 | P133: =VLOOKUP(B133:B431,'[1]CONTRATACION MARZO '!$B$2:$AB$431,27,0) -> https://www.contratos.gov.co/consultas/detalleProceso.do?numConstancia=20-4-10591596
A134: 133 | B134: 33005079 | C134: IDALMIS NAVARRO ARROYO | D134: 1014 | E134: 1014-2020 | F134: AUXILIAR SERVICIOS GENERALES URGENCIA | G134: 02 de marzo de 2020 | H134: 31 de marzo de 2020 | I134: 1378000 | J134: 1378000 | K134: WILFRAN JIMENEZ DE LA PEÑA | L134: COORD CENTRO DE SALUD | M134: 1241 | N134: 2122 | O134: 2020-03-16 | P134: =VLOOKUP(B134:B431,'[1]CONTRATACION MARZO '!$B$2:$AB$431,27,0) -> https://www.contratos.gov.co/consultas/detalleProceso.do?numConstancia=20-4-10591621
A135: 134 | B135: 1129571476 | C135: ILIANA MATOS RAMOS | D135: 1015 | E135: 1015-2020 | F135: ABOGADO EXTERNO | G135: 02 de marzo de 2020 | H135: 31 de marzo de 2020 | I135: 4000000 | J135: 4000000 | K135: ORNELLA FIORENTINO | L135: JEFE DE JURIDICA | M135: 1242 | N135: 2123 | O135: 2020-03-16 | P135: =VLOOKUP(B135:B431,'[1]CONTRATACION MARZO '!$B$2:$AB$431,27,0) -> https://www.contratos.gov.co/consultas/detalleProceso.do?numConstancia=20-4-10591652
A136: 135 | B136: 32861543 | C136: INGRID NAVARRO CARRILLO | D136: 1016 | E136: 1016-2020 | F136: FISIOTERAPEUTA | G136: 02 de marzo de 2020 | H136: 31 de marzo de 2020 | I136: 5800000 | J136: 5800000 | K136: SERGIO BOVEA MARIN | L136: COORD CENTRO DE SALUD | M136: 1243 | N136: 2124 | O136: 2020-03-16 | P136: =VLOOKUP(B136:B431,'[1]CONTRATACION MARZO '!$B$2:$AB$431,27,0) -> https://www.contratos.gov.co/consultas/detalleProceso.do?numConstancia=20-4-10591668
A137: 136 | B137: 1003265428 | C137: ISABEL CURIEL CORTINA | D137: 1017 | E137: 1017-2020 | F137: GESTION DOCUMENTAL JURIDICA | G137: 02 de marzo de 2020 | H137: 31 de marzo de 2020 | I137: 1270000 | J137: 1270000 | K137: ORNELLA FIORENTINO | L137: JEFE DE JURIDICA | M137: 1244 | N137: 2125 | O137: 2020-03-16 | P137: =VLOOKUP(B137:B431,'[1]CONTRATACION MARZO '!$B$2:$AB$431,27,0) -> ttps://www.contratos.gov.co/consultas/detalleProceso.do?numConstancia=20-4-10591698
A138: 137 | B138: 72428579 | C138: IVAN ANDRES DOMINGUEZ SAGBINI | D138: 1018 | E138: 1018-2020 | F138: GINECOLOGO | G138: 02 de marzo de 2020 | H138: 31 de marzo de 2020 | I138: 8000000 | J138: 8000000 | K138: NILSA ARIZA MARQUEZ | L138: COORDINADOR PYP | M138: 1245 | N138: 2126 | O138: 2020-03-16 | P138: =VLOOKUP(B138:B431,'[1]CONTRATACION MARZO '!$B$2:$AB$431,27,0) -> https://www.contratos.gov.co/consultas/detalleProceso.do?numConstancia=20-4-10591719
A139: 138 | B139: 1042447104 | C139: IVOR ANDRES SANJUAN PEREZ | D139: 1019 | E139: 1019-2020 | F139: AUXILIAR RECURSOS FISICOS | G139: 02 de marzo de 2020 | H139: 31 de marzo de 2020 | I139: 1900000 | J139: 1900000 | K139: SANDRA SANMARTIN | L139: SUBGERENCIA ADMINISTRATIVA | M139: 1246 | N139: 2127 | O139: 2020-03-16 | P139: =VLOOKUP(B139:B431,'[1]CONTRATACION MARZO '!$B$2:$AB$431,27,0) -> https://www.contratos.gov.co/consultas/detalleProceso.do?numConstancia=20-4-10591753
A140: 139 | B140: 8495176 | C140: JAIME ALBERTO ALVAREZ NORIEGA | D140: 1020 | E140: 1020-2020 | F140: INGENIERO AMBIENTAL | G140: 02 de marzo de 2020 | H140: 31 de marzo de 2020 | I140: 3000000 | J140: 3000000 | K140: SANDRA SANMARTIN | L140: SUBGERENCIA ADMINISTRATIVA | M140: 1247 | N140: 2128 | O140: 2020-03-16 | P140: =VLOOKUP(B140:B431,'[1]CONTRATACION MARZO '!$B$2:$AB$431,27,0) -> https://www.contratos.gov.co/consultas/detalleProceso.do?numConstancia=20-4-10591806
A141: 140 | B141: 72429926 | C141: JAIRO ESCOBAR ROMERO | D141: 1021 | E141: 1021-2020 | F141: MEDICO DE URGENCIA | G141: 02 de marzo de 2020 | H141: 31 de marzo de 2020 | I141: 2560000 | J141: 2560000 | K141: WILFRAN JIMENEZ DE LA PEÑA | L141: COORD CENTRO DE SALUD | M141: 1248 | N141: 2129 | O141: 2020-03-16 | P141: =VLOOKUP(B141:B431,'[1]CONTRATACION MARZO '!$B$2:$AB$431,27,0) -> https://www.contratos.gov.co/consultas/detalleProceso.do?numConstancia=20-4-10591869
A142: 141 | B142: 32874188 | C142: JALICSSA ARRIETA ORTEGA | D142: 1022 | E142: 1022-2020 | F142: PSICOLOGA | G142: 02 de marzo de 2020 | H142: 31 de marzo de 2020 | I142: 3000000 | J142: 3000000 | K142: BETTY PERTUZ | L142: SUBGERENCIA CIENTIFICA | M142: 1249 | N142: 2130 | O142: 2020-03-16 | P142: =VLOOKUP(B142:B431,'[1]CONTRATACION MARZO '!$B$2:$AB$431,27,0) -> https://www.contratos.gov.co/consultas/detalleProceso.do?numConstancia=20-4-10591880
A143: 142 | B143: 32703101 | C143: JANETH DEL CARMEN GUZMAN CANTILLO | D143: 1023 | E143: 1023-2020 | F143: COORDINADOR DE FACTURACION | G143: 02 de marzo de 2020 | H143: 31 de marzo de 2020 | I143: 1600000 | J143: 1600000 | K143: YARELIS GUERRA CORREA | L143: COORD CENTRO DE SALUD | M143: 1250 | N143: 2131 | O143: 2020-03-16 | P143: =VLOOKUP(B143:B431,'[1]CONTRATACION MARZO '!$B$2:$AB$431,27,0) -> https://www.contratos.gov.co/consultas/detalleProceso.do?numConstancia=20-4-10591926
A144: 143 | B144: 26900583 | C144: JANETH JIMENEZ PEÑA | D144: 1024 | E144: 1024-2020 | F144: TRABAJADORA SOCIAL | G144: 02 de marzo de 2020 | H144: 31 de marzo de 2020 | I144: 2500000 | J144: 2500000 | K144: CARLOS VISBAL JIMENEZ | L144: COORD CENTRO DE SALUD | M144: 1251 | N144: 2132 | O144: 2020-03-16 | P144: =VLOOKUP(B144:B431,'[1]CONTRATACION MARZO '!$B$2:$AB$431,27,0) -> https://www.contratos.gov.co/consultas/detalleProceso.do?numConstancia=20-4-10591960
A145: 144 | B145: 72072808 | C145: JARID BERDUGO COBO | D145: 1025 | E145: 1025-2020 | F145: REFERENCIA Y CONTRAREFERENCIA | G145: 02 de marzo de 2020 | H145: 31 de marzo de 2020 | I145: 1480000 | J145: 1480000 | K145: WILFRAN JIMENEZ DE LA PEÑA | L145: COORD CENTRO DE SALUD | M145: 1252 | N145: 2133 | O145: 2020-03-16 | P145: =VLOOKUP(B145:B431,'[1]CONTRATACION MARZO '!$B$2:$AB$431,27,0) -> https://www.contratos.gov.co/consultas/detalleProceso.do?numConstancia=20-4-10592032
A146: 145 | B146: 8566485 | C146: JAVIER VLADIMIR CASTRO POVEA | D146: 1026 | E146: 1026-2020 | F146: ABOGADO - TALENTO HUMANO | G146: 02 de marzo de 2020 | H146: 31 de marzo de 2020 | I146: 5000000 | J146: 5000000 | K146: FABIAN COLPAS | L146: JEFE TALENTO HUMANO | M146: 1253 | N146: 2134 | O146: 2020-03-16 | P146: =VLOOKUP(B146:B431,'[1]CONTRATACION MARZO '!$B$2:$AB$431,27,0) -> https://www.contratos.gov.co/consultas/detalleProceso.do?numConstancia=20-4-10592071
A147: 146 | B147: 1143453456 | C147: JEAN DAVID MONTALVO ZULETA | D147: 1027 | E147: 1027-2020 | F147: AGENTE CALL CENTER | G147: 02 de marzo de 2020 | H147: 31 de marzo de 2020 | I147: 1378000 | J147: 1378000 | K147: WILFRAN JIMENEZ DE LA PEÑA | L147: COORD CENTRO DE SALUD | M147: 1254 | N147: 2135 | O147: 2020-03-16 | P147: =VLOOKUP(B147:B431,'[1]CONTRATACION MARZO '!$B$2:$AB$431,27,0) -> https://www.contratos.gov.co/consultas/detalleProceso.do?numConstancia=20-4-10592098
A148: 147 | B148: 32869709 | C148: JENECIS BARRERA MIRANDA | D148: 1028 | E148: 1028-2020 | F148: ENFERMERA MATERNIDAD SEGURA | G148: 02 de marzo de 2020 | H148: 31 de marzo de 2020 | I148: 2300000 | J148: 2300000 | K148: NILSA ARIZA MARQUEZ | L148: COORDINADOR PYP | M148: 1255 | N148: 2136 | O148: 2020-03-16 | P148: =VLOOKUP(B148:B431,'[1]CONTRATACION MARZO '!$B$2:$AB$431,27,0) -> https://www.contratos.gov.co/consultas/detalleProceso.do?numConstancia=20-4-10592120
A149: 148 | B149: 55349541 | C149: JESSICA MARIA ALMARALES RUIZ | D149: 1029 | E149: 1029-2020 | F149: MEDICO DE URGENCIA | G149: 02 de marzo de 2020 | H149: 31 de marzo de 2020 | I149: 2560000 | J149: 2560000 | K149: WILFRAN JIMENEZ DE LA PEÑA | L149: COORD CENTRO DE SALUD | M149: 1256 | N149: 2137 | O149: 2020-03-16 | P149: =VLOOKUP(B149:B431,'[1]CONTRATACION MARZO '!$B$2:$AB$431,27,0) -> https://www.contratos.gov.co/consultas/detalleProceso.do?numConstancia=20-4-10592141
A150: 149 | B150: 1042444925 | C150: JESUS MORENO DE ALBA | D150: 1030 | E150: 1030-2020 | F150: AUXILIAR DE FACTURACION URGENCIA | G150: 02 de marzo de 2020 | H150: 31 de marzo de 2020 | I150: 1400000 | J150: 1400000 | K150: SANDRA SANMARTIN | L150: SUBGERENCIA ADMINISTRATIVA | M150: 1257 | N150: 2138 | O150: 2020-03-16 | P150: =VLOOKUP(B150:B431,'[1]CONTRATACION MARZO '!$B$2:$AB$431,27,0) -> https://www.contratos.gov.co/consultas/detalleProceso.do?numConstancia=20-4-10592153
A151: 150 | B151: 8740611 | C151: JESUS RECUERO LAMADRID | D151: 1031 | E151: 1031-2020 | F151: ORIENTADOR | G151: 02 de marzo de 2020 | H151: 31 de marzo de 2020 | I151: 1270000 | J151: 1270000 | K151: WILFRAN JIMENEZ DE LA PEÑA | L151: COORD CENTRO DE SALUD | M151: 1258 | N151: 2139 | O151: 2020-03-16 | P151: =VLOOKUP(B151:B431,'[1]CONTRATACION MARZO '!$B$2:$AB$431,27,0) -> https://www.contratos.gov.co/consultas/detalleProceso.do?numConstancia=20-4-10592157
A152: 151 | B152: 44161544 | C152: JHOANA CATALINA SANDOVAL ESCORCIA | D152: 1032 | E152: 1032-2020 | F152: ENFERMERA JEFE URGENCIAS | G152: 02 de marzo de 2020 | H152: 31 de marzo de 2020 | I152: 1900000 | J152: 1900000 | K152: SERGIO BOVEA MARIN | L152: COORD CENTRO DE SALUD | M152: 1259 | N152: 2140 | O152: 2020-03-16 | P152: =VLOOKUP(B152:B431,'[1]CONTRATACION MARZO '!$B$2:$AB$431,27,0) -> https://www.contratos.gov.co/consultas/detalleProceso.do?numConstancia=20-4-10592159
A153: 152 | B153: 1042444832 | C153: JHONNATAN ALFONSO DE LA HOZ BARRIOS | D153: 1033 | E153: 1033-2020 | F153: MEDICO CONSULTA EXTERNA | G153: 02 de marzo de 2020 | H153: 31 de marzo de 2020 | I153: =2120000*2 -> 4240000 | J153: 4240000 | K153: AIX PALACIO | L153: COORD CENTRO DE SALUD | M153: 1260 | N153: 2141 | O153: 2020-03-16 | P153: =VLOOKUP(B153:B431,'[1]CONTRATACION MARZO '!$B$2:$AB$431,27,0) -> https://www.contratos.gov.co/consultas/detalleProceso.do?numConstancia=20-4-10592165
A154: 153 | B154: 1043001061 | C154: JOCELIN PAOLA GOMEZ AGUIRRE | D154: 1034 | E154: 1034-2020 | F154: AUXILIAR DE ENFERMERIA | G154: 02 de marzo de 2020 | H154: 31 de marzo de 2020 | I154: 1166000 | J154: 1166000 | K154: BETTY PERTUZ | L154: SUBGERENCIA CIENTIFICA | M154: 1261 | N154: 2142 | O154: 2020-03-16 | P154: =VLOOKUP(B154:B431,'[1]CONTRATACION MARZO '!$B$2:$AB$431,27,0) -> https://www.contratos.gov.co/consultas/detalleProceso.do?numConstancia=20-4-10592170
A155: 154 | B155: 1045706679 | C155: JONATHAN ACOSTA MORENO | D155: 1035 | E155: 1035-2020 | F155: MEDICO DE URGENCIA | G155: 02 de marzo de 2020 | H155: 31 de marzo de 2020 | I155: 2560000 | J155: 2560000 | K155: WILFRAN JIMENEZ DE LA PEÑA | L155: COORD CENTRO DE SALUD | M155: 1262 | N155: 2143 | O155: 2020-03-16 | P155: =VLOOKUP(B155:B431,'[1]CONTRATACION MARZO '!$B$2:$AB$431,27,0) -> https://www.contratos.gov.co/consultas/detalleProceso.do?numConstancia=20-4-10592175
A156: 155 | B156: 8754502 | C156: JORGE DE LA HOZ DE LA HOZ | D156: 1036 | E156: 1036-2020 | F156: ORIENTADOR | G156: 02 de marzo de 2020 | H156: 31 de marzo de 2020 | I156: 1270000 | J156: 1270000 | K156: DIANA MARTINEZ PACHECO | L156: COORD CENTRO DE SALUD | M156: 1263 | N156: 2144 | O156: 2020-03-16 | P156: =VLOOKUP(B156:B431,'[1]CONTRATACION MARZO '!$B$2:$AB$431,27,0) -> https://www.contratos.gov.co/consultas/detalleProceso.do?numConstancia=20-4-10592181
A157: 156 | B157: 8776312 | C157: JORGE RIVERA MEZA | D157: 1037 | E157: 1037-2020 | F157: AUXILIAR RECURSOS FISICOS | G157: 02 de marzo de 2020 | H157: 31 de marzo de 2020 | I157: 1900000 | J157: 1900000 | K157: SANDRA SANMARTIN | L157: SUBGERENCIA ADMINISTRATIVA | M157: 1264 | N157: 2145 | O157: 2020-03-16 | P157: =VLOOKUP(B157:B431,'[1]CONTRATACION MARZO '!$B$2:$AB$431,27,0) -> https://www.contratos.gov.co/consultas/detalleProceso.do?numConstancia=20-4-10592199
A158: 157 | B158: 8704073 | C158: JOSE ALFREDO JIMENEZ CASTRO | D158: 1038 | E158: 1038-2020 | F158: ORIENTADOR | G158: 02 de marzo de 2020 | H158: 31 de marzo de 2020 | I158: 1270000 | J158: 1270000 | K158: VICTOR MIRANDA | L158: COORD CENTRO DE SALUD | M158: 1265 | N158: 2146 | O158: 2020-03-16 | P158: =VLOOKUP(B158:B431,'[1]CONTRATACION MARZO '!$B$2:$AB$431,27,0) -> https://www.contratos.gov.co/consultas/detalleProceso.do?numConstancia=20-4-10592203
A159: 158 | B159: 1140855812 | C159: JOSE DAVID NOGUERA SOTO | D159: 1039 | E159: 1039-2020 | F159: GESTIÓN DOCUMENTAL CONTRATACIÓN | G159: 02 de marzo de 2020 | H159: 31 de marzo de 2020 | I159: 2300000 | J159: 2300000 | K159: ORNELLA FIORENTINO | L159: JEFE DE JURIDICA | M159: 1266 | N159: 2147 | O159: 2020-03-16 | P159: =VLOOKUP(B159:B431,'[1]CONTRATACION MARZO '!$B$2:$AB$431,27,0) -> https://www.contratos.gov.co/consultas/detalleProceso.do?numConstancia=20-4-10592212
A160: 159 | B160: 1045698343 | C160: JOSE FRANCISCO INFANZON CASTRO | D160: 1040 | E160: 1040-2020 | F160: PROFESIONAL DE RECURSOS FISICOS | G160: 02 de marzo de 2020 | H160: 31 de marzo de 2020 | I160: 5800000 | J160: 5800000 | K160: ROSA MADERA | L160: GERENTE | M160: 1267 | N160: 2148 | O160: 2020-03-16 | P160: =VLOOKUP(B160:B431,'[1]CONTRATACION MARZO '!$B$2:$AB$431,27,0) -> https://www.contratos.gov.co/consultas/detalleProceso.do?numConstancia=20-4-10592394
A161: 160 | B161: 8532785 | C161: JOSE GUERRERO ORTIZ | D161: 1041 | E161: 1041-2020 | F161: AGENTE CALL CENTER | G161: 02 de marzo de 2020 | H161: 31 de marzo de 2020 | I161: 1378000 | J161: 1378000 | K161: WILFRAN JIMENEZ DE LA PEÑA | L161: COORD CENTRO DE SALUD | M161: 1268 | N161: 2149 | O161: 2020-03-16 | P161: =VLOOKUP(B161:B431,'[1]CONTRATACION MARZO '!$B$2:$AB$431,27,0) -> https://www.contratos.gov.co/consultas/detalleProceso.do?numConstancia=20-4-10592414
A162: 161 | B162: 72434909 | C162: JOSE IGNACIO DE ALBA MARTINEZ | D162: 1042 | E162: 1042-2020 | F162: AUXILIAR DE ARCHIVO TALENTO HUMANO | G162: 02 de marzo de 2020 | H162: 31 de marzo de 2020 | I162: 1500000 | J162: 1500000 | K162: FABIAN COLPAS | L162: JEFE TALENTO HUMANO | M162: 1269 | N162: 2150 | O162: 2020-03-16 | P162: =VLOOKUP(B162:B431,'[1]CONTRATACION MARZO '!$B$2:$AB$431,27,0) -> https://www.contratos.gov.co/consultas/detalleProceso.do?numConstancia=20-4-10592541
A163: =+A162+1 -> 162 | B163: 72271514 | C163: JOSE LUIS FLOREZ DIAZ | D163: 1043 | E163: 1043-2020 | F163: AUXILIAR ADMINISTRATIVO VENTANILLA | G163: 02 de marzo de 2020 | H163: 31 de marzo de 2020 | I163: 1900000 | J163: 1900000 | K163: SANDRA SANMARTIN | L163: SUBGERENCIA ADMINISTRATIVA | M163: 1270 | N163: 2151 | O163: 2020-03-16 | P163: =VLOOKUP(B163:B431,'[1]CONTRATACION MARZO '!$B$2:$AB$431,27,0) -> https://www.contratos.gov.co/consultas/detalleProceso.do?numConstancia=20-4-10592571
A164: 163 | B164: 9143862 | C164: JOSE LUIS LEAL CORREA | D164: 1044 | E164: 1044-2020 | F164: AUXILIAR DE FARMACIA | G164: 02 de marzo de 2020 | H164: 31 de marzo de 2020 | I164: 1270000 | J164: 1270000 | K164: BETTY PERTUZ | L164: SUBGERENCIA CIENTIFICA | M164: 1271 | N164: 2152 | O164: 2020-03-16 | P164: =VLOOKUP(B164:B431,'[1]CONTRATACION MARZO '!$B$2:$AB$431,27,0) -> https://www.contratos.gov.co/consultas/detalleProceso.do?numConstancia=20-4-10592599
A165: 164 | B165: 72165796 | C165: JOSE SALVADOR FERNANDEZ RODELO | D165: 1045 | E165: 1045-2020 | F165: ORIENTADOR | G165: 02 de marzo de 2020 | H165: 31 de marzo de 2020 | I165: 1270000 | J165: 1270000 | K165: WILFRAN JIMENEZ DE LA PEÑA | L165: COORD CENTRO DE SALUD | M165: 1272 | N165: 2153 | O165: 2020-03-16 | P165: =VLOOKUP(B165:B431,'[1]CONTRATACION MARZO '!$B$2:$AB$431,27,0) -> https://www.contratos.gov.co/consultas/detalleProceso.do?numConstancia=20-4-10592620
A166: 165 | B166: 32810582 | C166: JOSEFINA CARO VITOLA | D166: 1046 | E166: 1046-2020 | F166: AUXILIAR DE ENFERMERIA URGENCIAS | G166: 02 de marzo de 2020 | H166: 31 de marzo de 2020 | I166: 1378000 | J166: 1378000 | K166: SERGIO BOVEA MARIN | L166: COORD CENTRO DE SALUD | M166: 1273 | N166: 2154 | O166: 2020-03-16 | P166: =VLOOKUP(B166:B431,'[1]CONTRATACION MARZO '!$B$2:$AB$431,27,0) -> https://www.contratos.gov.co/consultas/detalleProceso.do?numConstancia=20-4-10592650
A167: 166 | B167: 1042442139 | C167: JOSHIKY ESTHER AHUMADA PACHECO | D167: 1047 | E167: 1047-2020 | F167: ENFERMERA JEFE CONSULTA EXTERNA | G167: 02 de marzo de 2020 | H167: 31 de marzo de 2020 | I167: 2300000 | J167: 2300000 | K167: NILSA ARIZA MARQUEZ | L167: COORDINADOR PYP | M167: 1274 | N167: 2155 | O167: 2020-03-16 | P167: =VLOOKUP(B167:B431,'[1]CONTRATACION MARZO '!$B$2:$AB$431,27,0) -> https://www.contratos.gov.co/consultas/detalleProceso.do?numConstancia=20-4-10592672
A168: 167 | B168: 72242552 | C168: JUAN CAMILO CASTILLO ARIZA | D168: 1048 | E168: 1048-2020 | F168: MEDICO CONSULTA EXTERNA | G168: 02 de marzo de 2020 | H168: 31 de marzo de 2020 | I168: 3180000 | J168: 3180000 | K168: CARLOS VISBAL JIMENEZ | L168: COORD CENTRO DE SALUD | M168: 1275 | N168: 2156 | O168: 2020-03-16 | P168: =VLOOKUP(B168:B431,'[1]CONTRATACION MARZO '!$B$2:$AB$431,27,0) -> https://www.contratos.gov.co/consultas/detalleProceso.do?numConstancia=20-4-10592736
A169: 168 | B169: 72095954 | C169: JUAN CARLOS BARROS CARO | D169: 1049 | E169: 1049-2020 | F169: ASESOR GERENCIA | G169: 02 de marzo de 2020 | H169: 31 de marzo de 2020 | I169: 4500000 | J169: 4500000 | K169: ROSA MADERA | L169: GERENTE | M169: 1276 | N169: 2157 | O169: 2020-03-16 | P169: =VLOOKUP(B169:B431,'[1]CONTRATACION MARZO '!$B$2:$AB$431,27,0) -> https://www.contratos.gov.co/consultas/detalleProceso.do?numConstancia=20-4-10592747
A170: 169 | B170: 72278234 | C170: JUAN GABRIEL FRANCO PRENT | D170: 1050 | E170: 1050-2020 | F170: COORDINADOR DE FACTURACION | G170: 02 de marzo de 2020 | H170: 31 de marzo de 2020 | I170: 4375000 | J170: 4375000 | K170: SANDRA SANMARTIN | L170: SUBGERENCIA ADMINISTRATIVA | M170: 1277 | N170: 2158 | O170: 2020-03-16 | P170: =VLOOKUP(B170:B431,'[1]CONTRATACION MARZO '!$B$2:$AB$431,27,0) -> https://www.contratos.gov.co/consultas/detalleProceso.do?numConstancia=20-4-10592783
A171: 170 | B171: 32771594 | C171: JUANA DIAZ CARABALLO | D171: 1051 | E171: 1051-2020 | F171: AUXILIAR DE ENFERMERIA URGENCIAS | G171: 02 de marzo de 2020 | H171: 31 de marzo de 2020 | I171: 1378000 | J171: 1378000 | K171: SERGIO BOVEA MARIN | L171: COORD CENTRO DE SALUD | M171: 1278 | N171: 2159 | O171: 2020-03-16 | P171: =VLOOKUP(B171:B431,'[1]CONTRATACION MARZO '!$B$2:$AB$431,27,0) -> https://www.contratos.gov.co/consultas/detalleProceso.do?numConstancia=20-4-10592794
A172: 171 | B172: 26853643 | C172: JUDITH CHARRIS MACHADO | D172: 1052 | E172: 1052-2020 | F172: ENFERMERA JEFE URGENCIAS | G172: 02 de marzo de 2020 | H172: 31 de marzo de 2020 | I172: 1900000 | J172: 1900000 | K172: WILFRAN JIMENEZ DE LA PEÑA | L172: COORD CENTRO DE SALUD | M172: 1279 | N172: 2160 | O172: 2020-03-16 | P172: =VLOOKUP(B172:B431,'[1]CONTRATACION MARZO '!$B$2:$AB$431,27,0) -> https://www.contratos.gov.co/consultas/detalleProceso.do?numConstancia=20-4-10592805
A173: 172 | B173: 32814077 | C173: JUDITH TORRES CASTILLO | D173: 1053 | E173: 1053-2020 | F173: COORDINADOR DE FACTURACION | G173: 02 de marzo de 2020 | H173: 31 de marzo de 2020 | I173: 1600000 | J173: 1600000 | K173: VICTOR MIRANDA | L173: COORD CENTRO DE SALUD | M173: 1280 | N173: 2161 | O173: 2020-03-16 | P173: =VLOOKUP(B173:B431,'[1]CONTRATACION MARZO '!$B$2:$AB$431,27,0) -> https://www.contratos.gov.co/consultas/detalleProceso.do?numConstancia=20-4-10592818
A174: 173 | B174: 32712489 | C174: JULIA ESTELLA RIVERA TREJOS | D174: 1054 | E174: 1054-2020 | F174: MEDICO DE URGENCIA | G174: 02 de marzo de 2020 | H174: 31 de marzo de 2020 | I174: 2560000 | J174: 2560000 | K174: WILFRAN JIMENEZ DE LA PEÑA | L174: COORD CENTRO DE SALUD | M174: 1281 | N174: 2162 | O174: 2020-03-16 | P174: =VLOOKUP(B174:B431,'[1]CONTRATACION MARZO '!$B$2:$AB$431,27,0) -> https://www.contratos.gov.co/consultas/detalleProceso.do?numConstancia=20-4-10592866
A175: 174 | B175: 1042443708 | C175: JULIETH ANDREA CAMACHO CHACON | D175: 1055 | E175: 1055-2020 | F175: ENFERMERA JEFE | G175: 02 de marzo de 2020 | H175: 31 de marzo de 2020 | I175: 2300000 | J175: 2300000 | K175: NILSA ARIZA MARQUEZ | L175: COORDINADOR PYP | M175: 1282 | N175: 2163 | O175: 2020-03-16 | P175: =VLOOKUP(B175:B431,'[1]CONTRATACION MARZO '!$B$2:$AB$431,27,0) -> https://www.contratos.gov.co/consultas/detalleProceso.do?numConstancia=20-4-10592886
A176: 175 | B176: 73140179 | C176: JULIO CESAR LOPEZ ROMERO | D176: 1056 | E176: 1056-2020 | F176: DIGITADOR PAI WEB | G176: 02 de marzo de 2020 | H176: 31 de marzo de 2020 | I176: 2000000 | J176: 2000000 | K176: NILSA ARIZA MARQUEZ | L176: COORDINADOR PYP | M176: 1283 | N176: 2164 | O176: 2020-03-16 | P176: =VLOOKUP(B176:B431,'[1]CONTRATACION MARZO '!$B$2:$AB$431,27,0) -> https://www.contratos.gov.co/consultas/detalleProceso.do?numConstancia=20-4-10592905
A177: 176 | B177: 22468261 | C177: KANYA MALLERLY BERNAL BECERRA | D177: 1057 | E177: 1057-2020 | F177: DIGITADOR PAI WEB | G177: 02 de marzo de 2020 | H177: 31 de marzo de 2020 | I177: 2200000 | J177: 2200000 | K177: NILSA ARIZA MARQUEZ | L177: COORDINADOR PYP | M177: 1284 | N177: 2165 | O177: 2020-03-16 | P177: =VLOOKUP(B177:B431,'[1]CONTRATACION MARZO '!$B$2:$AB$431,27,0) -> https://www.contratos.gov.co/consultas/detalleProceso.do?numConstancia=20-4-10592947
B178: 32825276 | C178: GIOVANNA ESTHER AFRICANO NAVARRO | D178: 1058 | E178: 1058-2020 | F178: NUTRICIONISTA | G178: 02 de marzo de 2020 | H178: 31 de marzo de 2020 | I178: 2300000 | J178: 2300000 | K178: WILFRAN JIMENEZ DE LA PEÑA | L178: =+L174 -> COORD CENTRO DE SALUD | M178: 1285 | N178: 2166 | O178: 2020-03-16 | P178: https://www.contratos.gov.co/consultas/detalleProceso.do?numConstancia=20-4-10644276
A179: =+#REF!+1 ->  | B179: 1043841968 | C179: KAREN DAYANA FONSECA MUÑOZ | D179: 1059 | E179: 1059-2020 | F179: MEDICO DE URGENCIA | G179: 02 de marzo de 2020 | H179: 31 de marzo de 2020 | I179: 2560000 | J179: 2560000 | K179: SERGIO BOVEA MARIN | L179: COORD CENTRO DE SALUD | M179: 1286 | N179: 2167 | O179: 2020-03-16 | P179: =VLOOKUP(B179:B431,'[1]CONTRATACION MARZO '!$B$2:$AB$431,27,0) -> https://www.contratos.gov.co/consultas/detalleProceso.do?numConstancia=20-4-10592973
A180: =+A179+1 ->  | B180: 55313269 | C180: KAREN MARTINEZ BRANGO | D180: 1060 | E180: 1060-2020 | F180: AUXILIAR DE ENFERMERIA URGENCIAS | G180: 02 de marzo de 2020 | H180: 31 de marzo de 2020 | I180: 1378000 | J180: 1378000 | K180: SERGIO BOVEA MARIN | L180: COORD CENTRO DE SALUD | M180: 1287 | N180: 2168 | O180: 2020-03-16 | P180: =VLOOKUP(B180:B431,'[1]CONTRATACION MARZO '!$B$2:$AB$431,27,0) -> https://www.contratos.gov.co/consultas/detalleProceso.do?numConstancia=20-4-10592991
B181: 1129513283 | C181: KARINE MILENA LEONES MARQUEZ | D181: 1061 | E181: 1061-2020 | F181: AUXILIAR DE FARMACIA | G181: 02 de marzo de 2020 | H181: 31 de marzo de 2020 | I181: 1270000 | J181: 1270000 | K181: BETTY PERTUZ | L181: SUBGERENCIA CIENTIFICA | M181: 1288 | N181: 2169 | O181: 2020-03-16 | P181: =VLOOKUP(B181:B431,'[1]CONTRATACION MARZO '!$B$2:$AB$431,27,0) -> https://www.contratos.gov.co/consultas/detalleProceso.do?numConstancia=20-4-10593006
B182: 1083433669 | C182: KARLA MARIA SUAREZ MUÑOZ | D182: 1062 | E182: 1062-2020 | F182: AUXILIAR DE ENFERMERIA URGENCIAS | G182: 02 de marzo de 2020 | H182: 31 de marzo de 2020 | I182: 1378000 | J182: 1378000 | K182: WILFRAN JIMENEZ DE LA PEÑA | L182: COORD CENTRO DE SALUD | M182: 1289 | N182: 2170 | O182: 2020-03-16 | P182: =VLOOKUP(B182:B431,'[1]CONTRATACION MARZO '!$B$2:$AB$431,27,0) -> https://www.contratos.gov.co/consultas/detalleProceso.do?numConstancia=20-4-10593021
B183: 1010137665 | C183: KAROLINE JUDITH MORENO VARELO | D183: 1063 | E183: 1063-2020 | F183: AUXILIAR ADMINISTRATIVO - COORD PYP | G183: 02 de marzo de 2020 | H183: 31 de marzo de 2020 | I183: 1500000 | J183: 1500000 | K183: NILSA ARIZA MARQUEZ | L183: COORDINADOR PYP | M183: 1290 | N183: 2171 | O183: 2020-03-16 | P183: =VLOOKUP(B183:B431,'[1]CONTRATACION MARZO '!$B$2:$AB$431,27,0) -> https://www.contratos.gov.co/consultas/detalleProceso.do?numConstancia=20-4-10593069
B184: 22534402 | C184: KATERINE RUA SUAREZ | D184: 1064 | E184: 1064-2020 | F184: AUXILIAR DE FACTURACION URGENCIA | G184: 02 de marzo de 2020 | H184: 31 de marzo de 2020 | I184: 1400000 | J184: 1400000 | K184: SANDRA SANMARTIN | L184: SUBGERENCIA ADMINISTRATIVA | M184: 1291 | N184: 2172 | O184: 2020-03-16 | P184: =VLOOKUP(B184:B431,'[1]CONTRATACION MARZO '!$B$2:$AB$431,27,0) -> https://www.contratos.gov.co/consultas/detalleProceso.do?numConstancia=20-4-10593080
B185: 1042429330 | C185: KATHERINE BALZA SALAS | D185: 1065 | E185: 1065-2020 | F185: AUXILIAR DE ARCHIVO | G185: 02 de marzo de 2020 | H185: 31 de marzo de 2020 | I185: 1500000 | J185: 1500000 | K185: SANDRA SANMARTIN | L185: SUBGERENCIA ADMINISTRATIVA | M185: 1292 | N185: 2173 | O185: 2020-03-16 | P185: =VLOOKUP(B185:B431,'[1]CONTRATACION MARZO '!$B$2:$AB$431,27,0) -> https://www.contratos.gov.co/consultas/detalleProceso.do?numConstancia=20-4-10593102
B186: 22804794 | C186: KATHERINE GUERRERO SEPULVEDA | D186: 1066 | E186: 1066-2020 | F186: ABOGADO EXTERNO - CONTRATACION | G186: 02 de marzo de 2020 | H186: 31 de marzo de 2020 | I186: 5800000 | J186: 5800000 | K186: ORNELLA FIORENTINO | L186: JEFE DE JURIDICA | M186: 1293 | N186: 2174 | O186: 2020-03-16 | P186: =VLOOKUP(B186:B431,'[1]CONTRATACION MARZO '!$B$2:$AB$431,27,0) -> https://www.contratos.gov.co/consultas/detalleProceso.do?numConstancia=20-4-10593113
B187: 32894662 | C187: KATTY MACIAS PONTON | D187: 1067 | E187: 1067-2020 | F187: MEDICO DE URGENCIA | G187: 02 de marzo de 2020 | H187: 31 de marzo de 2020 | I187: 2560000 | J187: 2560000 | K187: WILFRAN JIMENEZ DE LA PEÑA | L187: COORD CENTRO DE SALUD | M187: 1294 | N187: 2175 | O187: 2020-03-16 | P187: =VLOOKUP(B187:B431,'[1]CONTRATACION MARZO '!$B$2:$AB$431,27,0) -> https://www.contratos.gov.co/consultas/detalleProceso.do?numConstancia=20-4-10593152
B188: 55301340 | C188: KATYA LILIANA NORIEGA BARRIOS | D188: 1068 | E188: 1068-2020 | F188: AUXILIAR DE ENFERMERIA URGENCIAS | G188: 02 de marzo de 2020 | H188: 31 de marzo de 2020 | I188: 1378000 | J188: 1378000 | K188: SERGIO BOVEA MARIN | L188: COORD CENTRO DE SALUD | M188: 1295 | N188: 2176 | O188: 2020-03-16 | P188: =VLOOKUP(B188:B431,'[1]CONTRATACION MARZO '!$B$2:$AB$431,27,0) -> https://www.contratos.gov.co/consultas/detalleProceso.do?numConstancia=20-4-10593166
B189: 22642874 | C189: KELLYS JOHANA URUETA SUAREZ | D189: 1069 | E189: 1069-2020 | F189: AUXILIAR SERVICIOS GENERALES URGENCIA | G189: 02 de marzo de 2020 | H189: 31 de marzo de 2020 | I189: 1378000 | J189: 1378000 | K189: WILFRAN JIMENEZ DE LA PEÑA | L189: COORD CENTRO DE SALUD | M189: 1296 | N189: 2177 | O189: 2020-03-16 | P189: =VLOOKUP(B189:B431,'[1]CONTRATACION MARZO '!$B$2:$AB$431,27,0) -> https://www.contratos.gov.co/consultas/detalleProceso.do?numConstancia=20-4-10593206
B190: 1129581013 | C190: KERLY JHOVELIS PITRE MORENO | D190: 1070 | E190: 1070-2020 | F190: ENFERMERA JEFE P Y P | G190: 02 de marzo de 2020 | H190: 31 de marzo de 2020 | I190: 2300000 | J190: 2300000 | K190: NILSA ARIZA MARQUEZ | L190: COORDINADOR PYP | M190: 1297 | N190: 2178 | O190: 2020-03-16 | P190: =VLOOKUP(B190:B431,'[1]CONTRATACION MARZO '!$B$2:$AB$431,27,0) -> https://www.contratos.gov.co/consultas/detalleProceso.do?numConstancia=20-4-10593226
B191: 1045697885 | C191: LAURA ALANDETE CASTRO | D191: 1071 | E191: 1071-2020 | F191: MEDICO DE URGENCIA | G191: 02 de marzo de 2020 | H191: 31 de marzo de 2020 | I191: 2560000 | J191: 2560000 | K191: SERGIO BOVEA MARIN | L191: COORD CENTRO DE SALUD | M191: 1298 | N191: 2179 | O191: 2020-03-16 | P191: =VLOOKUP(B191:B431,'[1]CONTRATACION MARZO '!$B$2:$AB$431,27,0) -> https://www.contratos.gov.co/consultas/detalleProceso.do?numConstancia=20-4-10593249
B192: 22.739.758 | C192: LAURA MELENDEZ SALAZAR | D192: 1072 | E192: 1072-2020 | F192: ODONTOLOGO | G192: 02 de marzo de 2020 | H192: 31 de marzo de 2020 | I192: 1900000 | J192: 1900000 | K192: YARELIS GUERRA CORREA | L192: COORD CENTRO DE SALUD | M192: 1299 | N192: 2180 | O192: 2020-03-16 | P192: =VLOOKUP(B192:B431,'[1]CONTRATACION MARZO '!$B$2:$AB$431,27,0) -> https://www.contratos.gov.co/consultas/detalleProceso.do?numConstancia=20-4-10593274
B193: 1140847928 | C193: LEIDY DANIELA WILSON PEZZOTI | D193: 1073 | E193: 1073-2020 | F193: AUXILIAR ADMINISTRATIVO VENTANILLA | G193: 02 de marzo de 2020 | H193: 31 de marzo de 2020 | I193: 1900000 | J193: 1900000 | K193: SANDRA SANMARTIN | L193: SUBGERENCIA ADMINISTRATIVA | M193: 1300 | N193: 2181 | O193: 2020-03-16 | P193: =VLOOKUP(B193:B431,'[1]CONTRATACION MARZO '!$B$2:$AB$431,27,0) -> https://www.contratos.gov.co/consultas/detalleProceso.do?numConstancia=20-4-10593368
B194: 1045747916 | C194: LEIDY DIANA PAEZ OROZCO | D194: 1074 | E194: 1074-2020 | F194: ENFERMERA JEFE CONSULTA EXTERNA | G194: 02 de marzo de 2020 | H194: 31 de marzo de 2020 | I194: 1900000 | J194: 1900000 | K194: LUIS CARLOS DE LEON BERNIER | L194: COORD CENTRO DE SALUD | M194: 1301 | N194: 2182 | O194: 2020-03-16 | P194: =VLOOKUP(B194:B431,'[1]CONTRATACION MARZO '!$B$2:$AB$431,27,0) -> https://www.contratos.gov.co/consultas/detalleProceso.do?numConstancia=20-4-10593482
B195: 72053529 | C195: LEINER DARIO MEDINA HERRERA | D195: 1075 | E195: 1075-2020 | F195: CONTROL INTERNO | G195: 02 de marzo de 2020 | H195: 31 de marzo de 2020 | I195: 2500000 | J195: =I195*1 -> 2500000 | K195: SANDRA SANMARTIN | L195: SUBGERENCIA ADMINISTRATIVA | M195: 1302 | N195: 2183 | O195: 2020-03-16 | P195: =VLOOKUP(B195:B431,'[1]CONTRATACION MARZO '!$B$2:$AB$431,27,0) -> https://www.contratos.gov.co/consultas/detalleProceso.do?numConstancia=20-4-10593495
B196: 32879736 | C196: LEISYS MARIA CASTRO OLARTE | D196: 1076 | E196: 1076-2020 | F196: AUXILIAR DE FACTURACION URGENCIA | G196: 02 de marzo de 2020 | H196: 31 de marzo de 2020 | I196: 1400000 | J196: 1400000 | K196: SANDRA SANMARTIN | L196: SUBGERENCIA ADMINISTRATIVA | M196: 1303 | N196: 2184 | O196: 2020-03-16 | P196: =VLOOKUP(B196:B431,'[1]CONTRATACION MARZO '!$B$2:$AB$431,27,0) -> https://www.contratos.gov.co/consultas/detalleProceso.do?numConstancia=20-4-10593533
B197: 1140846298 | C197: LENIN ALVAREZ PINEDA | D197: 1077 | E197: 1077-2020 | F197: INGENIERO DE SOPORTE | G197: 02 de marzo de 2020 | H197: 31 de marzo de 2020 | I197: 3000000 | J197: 3000000 | K197: NILSA ARIZA MARQUEZ | L197: COORDINADOR PYP | M197: 1304 | N197: 2185 | O197: 2020-03-16 | P197: =VLOOKUP(B197:B431,'[1]CONTRATACION MARZO '!$B$2:$AB$431,27,0) -> https://www.contratos.gov.co/consultas/detalleProceso.do?numConstancia=20-4-10593550
B198: 1002157167 | C198: LEODALIZ SALGADO GUERRERO | D198: 1078 | E198: 1078-2020 | F198: AGENTE CALL CENTER | G198: 02 de marzo de 2020 | H198: 31 de marzo de 2020 | I198: 1400000 | J198: 1400000 | K198: WILFRAN JIMENEZ DE LA PEÑA | L198: COORD CENTRO DE SALUD | M198: 1305 | N198: 2186 | O198: 2020-03-16 | P198: =VLOOKUP(B198:B431,'[1]CONTRATACION MARZO '!$B$2:$AB$431,27,0) -> https://www.contratos.gov.co/consultas/detalleProceso.do?numConstancia=20-4-10596307
B199: 1090415871 | C199: LEONARDO BELLO PUENTES | D199: 1079 | E199: 1079-2020 | F199: ODONTOLOGO | G199: 02 de marzo de 2020 | H199: 31 de marzo de 2020 | I199: 1900000 | J199: 1900000 | K199: WILFRAN JIMENEZ DE LA PEÑA | L199: COORD CENTRO DE SALUD | M199: 1306 | N199: 2187 | O199: 2020-03-16 | P199: =VLOOKUP(B199:B431,'[1]CONTRATACION MARZO '!$B$2:$AB$431,27,0) -> https://www.contratos.gov.co/consultas/detalleProceso.do?numConstancia=20-4-10596318
B200: 72271914 | C200: LEONARDO DE JESUS ARIZA NIEBLES | D200: 1080 | E200: 1080-2020 | F200: AUXILIAR DE ARCHIVO | G200: 02 de marzo de 2020 | H200: 31 de marzo de 2020 | I200: 1500000 | J200: 1500000 | K200: SANDRA SANMARTIN | L200: SUBGERENCIA ADMINISTRATIVA | M200: 1307 | N200: 2188 | O200: 2020-03-16 | P200: =VLOOKUP(B200:B431,'[1]CONTRATACION MARZO '!$B$2:$AB$431,27,0) -> https://www.contratos.gov.co/consultas/detalleProceso.do?numConstancia=20-4-10596330
... 231 more rows

Sheet PIC MARZO 2020
B1: CEDULA | C1: NOMBRE Y APELLIDO | D1: # OPS | E1: #OPS | F1: FECHA INICIO | G1: FECHA TERMINACION | H1: OBJETO DEL CONTRATO | I1: VALOR MENSUAL | J1: VALOR TOTAL | K1: VALOR LETRAS total | L1: SUPERVISOR | M1: CARGO | N1: RUBRO PRESUPUESTAL | O1: CDP | P1: RP | Q1: POLIZA/RESPONSABILIDAD CIVIL PROFESIONAL | R1: CENTRO DE SALUD | S1: RUBRO | T1: ACREDITACION | U1: servicio | V1: perfil | W1: CONDICIONES DEL CONTRATO | X1: forma de pago | Y1: VALOR LETRAS MES | Z1: VIGENCIA | AA1: CONDICIONES | AB1: AREA | AC1: FECHA SECOP LINK SECOP | AD1: LINK SECOOP | AE1: FUNCIONES ESPECIFICAS | AF1: GARANTIAS | AG1: FORMATO DE PAGO 1 | AH1: PAGO FINAL | AI1: FECHA SECOP | AJ1: LINK SECOP
A2: 1 | B2: 44152281 | C2: KAREN JOHANA JIMENEZ RAMOS | D2: 068 | E2: 0068-2020-PIC | F2: 02 marzo de 2020 | G2: 31 MARZO DE 2020 | H2: APOYO A LA GESTION DIMENSIÓN_DE_SALUD_AMBIENTAL: Zoonosis | I2: 1900000 | J2: 1900000 | K2: =PesosMN(J2) -> UN MILLON NOVECIENTOS MIL PESOS | L2: NILSA ARIZA MARQUEZ | M2: COORDINADOR P Y P | N2: PIC | O2: 1538 | P2: 2422 | AI2: 2020-03-28 | AJ2: https://www.contratos.gov.co/consultas/detalleProceso.do?numConstancia=20-4-10630084
A3: 2 | B3: 22617307 | C3: ETILVIA TERESA DONADO CABALLERO | D3: 069 | E3: 0069-2020-PIC | F3: 02 marzo de 2020 | G3: 31 MARZO DE 2020 | H3: PSICOLOGO | I3: 2500000 | J3: 2500000 | K3: =PesosMN(J3) -> DOS MILLONES QUINIENTOS MIL PESOS | L3: BETTY PERTUZ | M3: SUBGERENTE CIENTIFICO | N3: PIC | O3: 1539 | P3: 2423 | AI3: 2020-03-28 | AJ3: https://www.contratos.gov.co/consultas/detalleProceso.do?numConstancia=20-4-10630789

Sheet CONTRATOS COVIC 19
B1: CEDULA | C1: NOMBRES APELLIDOS CONTRATISTA | D1: # OPS | E1: # OPS CON AÑO | F1: OBJETO DEL CONTRATO | G1: FECHA INICIO | H1: FECHA TERMINACION | I1: VALOR MENSUAL | J1: VALOR TOTAL | K1: SUPERVISOR | L1: CARGO | M1: CDP | N1: RP | O1: FECHA SECOP LINK SECOP | P1: LINK SECOOP
A2: 1 | B2: 55302261 | C2: VANESSA PAOLA DURANPEÑARANDA | D2: 1312 | E2: 1312-2020-CV19 | F2: FISIOTERAPEUTA | G2: 02 de marzo de 2020 | H2: 30 de abril 2020 | I2: 2500000 | J2: =I2*2 -> 5000000 | K2: CESAR ARRIETA | L2: COORD CENTRO DE SALUD | M2: 1533 | N2: 2414 | O2: 2020-03-29 | P2: https://www.contratos.gov.co/consultas/detalleProceso.do?numConstancia=20-4-10631361
A3: =+A2+1 -> 2 | B3: 1193512615 | C3: JORGE ELEICER DE LA CRUZ GONZALEZ | D3: 1313 | E3: 1313-2020- CV19 | F3: FISIOTERAPEUTA | G3: 02 de marzo de 2020 | H3: 30 de abril 2020 | I3: 2500000 | J3: 5000000 | K3: CESAR ARRIETA | L3: COORD CENTRO DE SALUD | M3: 1534 | N3: 2415 | O3: 2020-03-29 | P3: https://www.contratos.gov.co/consultas/detalleProceso.do?numConstancia=20-4-10631373
A4: =+A3+1 -> 3 | B4: 53107458 | C4: JANNE PADILLA ITURRIAGO | D4: 1314 | E4: 1314-2020-CV19 | F4: AUXILIAR DE ENFERMERIA | G4: 02 de marzo de 2020 | H4: 30 de abril 2020 | I4: 1500000 | J4: 3000000 | K4: CESAR ARRIETA | L4: COORD CENTRO DE SALUD | M4: 1535 | N4: 2416 | O4: 2020-03-29 | P4: https://www.contratos.gov.co/consultas/detalleProceso.do?numConstancia=20-4-10631376
A5: 4 | B5: 1042457847 | C5: EYLEEN LUCIA ZAMBRANO | D5: 1315 | E5: 1315-2020-CV19 | F5: AUXILIAR DE ENFERMERIA | G5: 02 de marzo de 2020 | H5: 30 de abril 2020 | I5: 1500000 | J5: 3000000 | K5: CESAR ARRIETA | L5: COORD CENTRO DE SALUD | M5: 1536 | N5: 2417 | O5: 2020-03-29 | P5: https://www.contratos.gov.co/consultas/detalleProceso.do?numConstancia=20-4-10631380
A6: 5 | B6: 1045729651 | C6: KAROLAY PAOLA GARCIA OSPINO | D6: 1316 | E6: 1316-2020-CV19 | F6: MEDICO | G6: 02 de marzo de 2020 | H6: 30 de abril 2020 | I6: 4240000 | J6: 8480000 | K6: CESAR ARRIETA | L6: COORD CENTRO DE SALUD | M6: 1553 | N6: 2460 | O6: 2020-03-29 | P6: https://www.contratos.gov.co/consultas/detalleProceso.do?numConstancia=20-4-10631389
A7: 6 | B7: 72193875 | C7: CRISTIAN DE JESUS BARRAZA VILLALBA | D7: 0939 | E7: 0939-2020-CV19 | F7: CONDUCTOR DE AMBULANCIA | G7: 02 de marzo de 2020 | H7: 30 de abril de 2020 | I7: 3600000 | J7: 7200000 | K7: CESAR ARRIETA | L7: COORD CENTRO DE SALUD | M7: 1166 | N7: 2047 | O7: 2020-03-29 | P7: https://www.contratos.gov.co/consultas/detalleProceso.do?numConstancia=20-4-10587468
